Publisher Label,Publisher URI,"Supplier","Net Amount (£)","Organisational Unit","Merchant Category Code","Purpose","Payment Date"
"Wolverhampton City Council","http://opendatacommunities.org/id/metropolitan-district-council/wolverhampton","APPLE ONLINE STORE GBP","142.50","Strategic ICTS (ICT Serv Budget)","5732","Computing - Purchase of Hardware","31/10/2016"
"Wolverhampton City Council","http://opendatacommunities.org/id/metropolitan-district-council/wolverhampton","Amazon EU","104.40","Strategic ICTS (ICT Serv Budget)","5969","Equipment - Purchase","31/10/2016"
"Wolverhampton City Council","http://opendatacommunities.org/id/metropolitan-district-council/wolverhampton","ITUNES.COM/BILL","0.79","Strategic ICTS (ICT Serv Budget)","5735","Computing - Purchase of Software","31/10/2016"
"Wolverhampton City Council","http://opendatacommunities.org/id/metropolitan-district-council/wolverhampton","LOVE2SHOP.CO.UK","100.00","Information & Intelligence","8641","Services - Professional Fees","31/10/2016"
"Wolverhampton City Council","http://opendatacommunities.org/id/metropolitan-district-council/wolverhampton","WWW.PRINTERBASE.CO.UK","119.00","Central Baths","5999","Equipment - Purchase","31/10/2016"
"Wolverhampton City Council","http://opendatacommunities.org/id/metropolitan-district-council/wolverhampton","THE RANGE","105.25","Aldersley Leisure Village","5311","Equipment - Purchase","31/10/2016"
"Wolverhampton City Council","http://opendatacommunities.org/id/metropolitan-district-council/wolverhampton","WDFE","85.67","International Trade","5309","Grant Payments","31/10/2016"
"Wolverhampton City Council","http://opendatacommunities.org/id/metropolitan-district-council/wolverhampton","FACEBK VCAHH92B92","600.32","Communications & Marketing - General","7311","Marketing \ Non-staff advertising","31/10/2016"
"Wolverhampton City Council","http://opendatacommunities.org/id/metropolitan-district-council/wolverhampton","ARGOS LTD","-23.30","International Trade","5310","Grant Payments","31/10/2016"
"Wolverhampton City Council","http://opendatacommunities.org/id/metropolitan-district-council/wolverhampton","POUNDWORLD RETAIL","10.87","International Trade","5310","Grant Payments","31/10/2016"
"Wolverhampton City Council","http://opendatacommunities.org/id/metropolitan-district-council/wolverhampton","ARGOS LTD","40.77","International Trade","5310","Grant Payments","31/10/2016"
"Wolverhampton City Council","http://opendatacommunities.org/id/metropolitan-district-council/wolverhampton","ART INTERIORS & FRAMES","70.73","International Trade","5999","Grant Payments","31/10/2016"
"Wolverhampton City Council","http://opendatacommunities.org/id/metropolitan-district-council/wolverhampton","BOOTS","13.57","International Trade","5912","Grant Payments","31/10/2016"
"Wolverhampton City Council","http://opendatacommunities.org/id/metropolitan-district-council/wolverhampton","BAGS OF LUGGAGE","25.00","International Trade","5948","Grant Payments","31/10/2016"
"Wolverhampton City Council","http://opendatacommunities.org/id/metropolitan-district-council/wolverhampton","TRAVELEX@SAINSBURY","1018.92","International Trade","6051","Grant Payments","31/10/2016"
"Wolverhampton City Council","http://opendatacommunities.org/id/metropolitan-district-council/wolverhampton","ASDA HOME SHOPPING","109.86","Upper Pendeford Farm Childrens Home","5411","Provisions (Not for resale)","31/10/2016"
"Wolverhampton City Council","http://opendatacommunities.org/id/metropolitan-district-council/wolverhampton","WEST COAST TRAINS","9.00","Wolverhampton Indoor and Open Market","7523","Car Allowances","31/10/2016"
"Wolverhampton City Council","http://opendatacommunities.org/id/metropolitan-district-council/wolverhampton","WEST COAST TRAINS","16.60","Wolverhampton Indoor and Open Market","4112","Public Transport","31/10/2016"
"Wolverhampton City Council","http://opendatacommunities.org/id/metropolitan-district-council/wolverhampton","ARGOS LTD","141.66","LAC Transitions Team","5310","Client Allowances","31/10/2016"
"Wolverhampton City Council","http://opendatacommunities.org/id/metropolitan-district-council/wolverhampton","ARGOS LTD","94.12","LAC Transitions Team","5310","Client Allowances","31/10/2016"
"Wolverhampton City Council","http://opendatacommunities.org/id/metropolitan-district-council/wolverhampton","ASDA SUPERSTORE","27.83","LAC Transitions Team","5411","Client Allowances","31/10/2016"
"Wolverhampton City Council","http://opendatacommunities.org/id/metropolitan-district-council/wolverhampton","SQUARESPACE INC.","161.87","Learning Technologies","7372","Computing - Purchase of Software","31/10/2016"
"Wolverhampton City Council","http://opendatacommunities.org/id/metropolitan-district-council/wolverhampton","ARGOS LTD","8.32","EIP Locality 3","5310","Equipment - Purchase","31/10/2016"
"Wolverhampton City Council","http://opendatacommunities.org/id/metropolitan-district-council/wolverhampton","ASDA SUPERSTORE","17.17","EIP Locality 3","5411","Provisions (Not for resale)","31/10/2016"
"Wolverhampton City Council","http://opendatacommunities.org/id/metropolitan-district-council/wolverhampton","ASDA HOME SHOPPING","72.16","Ernest Bold Court","5411","Provisions (Not for resale)","31/10/2016"
"Wolverhampton City Council","http://opendatacommunities.org/id/metropolitan-district-council/wolverhampton","ARGOS RETAIL GROUP","51.65","Ernest Bold Court","5310","Equipment - Purchase","31/10/2016"
"Wolverhampton City Council","http://opendatacommunities.org/id/metropolitan-district-council/wolverhampton","PARK MOBILE","5.33","Mayoral Expenses","7523","Parking Fees","31/10/2016"
"Wolverhampton City Council","http://opendatacommunities.org/id/metropolitan-district-council/wolverhampton","ROYAL OAK S.STN FS435","11.07","Northicote Farm","5541","Petrol","31/10/2016"
"Wolverhampton City Council","http://opendatacommunities.org/id/metropolitan-district-council/wolverhampton","HMCOURTS-SERVICE.G","20.00","Mental Health Assessment & Care Mgmt","9222","Services - Fees and Charges","31/10/2016"
"Wolverhampton City Council","http://opendatacommunities.org/id/metropolitan-district-council/wolverhampton","SAINSBURYS 2040","5.00","Duke Street Bungalows","5411","Provisions (Not for resale)","31/10/2016"
"Wolverhampton City Council","http://opendatacommunities.org/id/metropolitan-district-council/wolverhampton","SAINSBURYS 2040","16.10","Duke Street Bungalows","5411","Provisions (Not for resale)","31/10/2016"
"Wolverhampton City Council","http://opendatacommunities.org/id/metropolitan-district-council/wolverhampton","SAINSBURYS 2040","10.96","EIP Locality 3","5411","Provisions (Not for resale)","31/10/2016"
"Wolverhampton City Council","http://opendatacommunities.org/id/metropolitan-district-council/wolverhampton","THE POST OFFICE","7.25","Bilston Craft Cafe Project","9402","Comms - Postage","31/10/2016"
"Wolverhampton City Council","http://opendatacommunities.org/id/metropolitan-district-council/wolverhampton","IKEA","1310.00","CIN/CP S17 SW Unit - Area 6","5719","Equipment - Purchase","31/10/2016"
"Wolverhampton City Council","http://opendatacommunities.org/id/metropolitan-district-council/wolverhampton","ARGOS","463.87","CIN/CP S17 SW Unit - Area 6","5310","Equipment - Purchase","31/10/2016"
"Wolverhampton City Council","http://opendatacommunities.org/id/metropolitan-district-council/wolverhampton","GO CARZ","13.95","CIN/CP S17 SW Unit - Area 5","4121","Client Transport","31/10/2016"
"Wolverhampton City Council","http://opendatacommunities.org/id/metropolitan-district-council/wolverhampton","GO CARZ","14.27","CIN/CP S17 SW Unit - Area 5","4121","Client Transport","31/10/2016"
"Wolverhampton City Council","http://opendatacommunities.org/id/metropolitan-district-council/wolverhampton","GO CARZ","13.95","CIN/CP S17 SW Unit - Area 5","4121","Client Transport","31/10/2016"
"Wolverhampton City Council","http://opendatacommunities.org/id/metropolitan-district-council/wolverhampton","GO CARZ","14.27","CIN/CP S17 SW Unit - Area 5","4121","Client Transport","31/10/2016"
"Wolverhampton City Council","http://opendatacommunities.org/id/metropolitan-district-council/wolverhampton","WDT LONDON","2006.50","Civic Hall Out-house Promotions","7394","Equipment - Hire","31/10/2016"
"Wolverhampton City Council","http://opendatacommunities.org/id/metropolitan-district-council/wolverhampton","PERSONAL-PRODUCTS.","180.65","Civic Centre Catering","4816","Computing - Purchase of Software","31/10/2016"
"Wolverhampton City Council","http://opendatacommunities.org/id/metropolitan-district-council/wolverhampton","Amazon UK Marketplace","26.99","Welfare Rights","5942","Stationery","31/10/2016"
"Wolverhampton City Council","http://opendatacommunities.org/id/metropolitan-district-council/wolverhampton","ASDA HOME SHOPPING","-0.17","Ernest Bold Court","5411","Provisions (Not for resale)","31/10/2016"
"Wolverhampton City Council","http://opendatacommunities.org/id/metropolitan-district-council/wolverhampton","WWW.STAPLES.CO.UK","8.74","Towers Outdoor Education Centre","5943","Stationery","28/10/2016"
"Wolverhampton City Council","http://opendatacommunities.org/id/metropolitan-district-council/wolverhampton","BARCLAYS BANK PLC","200.00","CIN/CP S17 SW Unit - Area 6","6011","Financial Assistance In Exceptional Circ","28/10/2016"
"Wolverhampton City Council","http://opendatacommunities.org/id/metropolitan-district-council/wolverhampton","ARGOS RETAIL GROUP","112.48","Civic Halls Non Direct Management A/C","5310","Equipment - Purchase","28/10/2016"
"Wolverhampton City Council","http://opendatacommunities.org/id/metropolitan-district-council/wolverhampton","EVENT FURNITURE LIMITE","36.00","Civic Hall Out-house Promotions","7394","Equipment - Hire","28/10/2016"
"Wolverhampton City Council","http://opendatacommunities.org/id/metropolitan-district-council/wolverhampton","WWW.HOUSEOFMARBLES.COM","156.00","Art Gallery Shop","5970","Materials","28/10/2016"
"Wolverhampton City Council","http://opendatacommunities.org/id/metropolitan-district-council/wolverhampton","WWW.SEVERNTRENTSEARCHE","420.00","HRA General","4900","Services - Professional Fees","28/10/2016"
"Wolverhampton City Council","http://opendatacommunities.org/id/metropolitan-district-council/wolverhampton","WWW.SEVERNTRENTSEARCHE","290.00","HRA General","4900","Services - Professional Fees","28/10/2016"
"Wolverhampton City Council","http://opendatacommunities.org/id/metropolitan-district-council/wolverhampton","WWW.SEVERNTRENTSEARCHE","290.00","HRA General","4900","Services - Professional Fees","28/10/2016"
"Wolverhampton City Council","http://opendatacommunities.org/id/metropolitan-district-council/wolverhampton","SOUTHERN REGALIA LTD","200.00","Members Expenses","5691","Clothing / Uniforms","28/10/2016"
"Wolverhampton City Council","http://opendatacommunities.org/id/metropolitan-district-council/wolverhampton","Trainline.com Ltd","7.30","Adoption and Residence Team & Allowances","4112","Public Transport","28/10/2016"
"Wolverhampton City Council","http://opendatacommunities.org/id/metropolitan-district-council/wolverhampton","CORAM ACADEMY LTD","53.40","Fostering Team & Allowances","8398","Services - Supplies & Services to users","28/10/2016"
"Wolverhampton City Council","http://opendatacommunities.org/id/metropolitan-district-council/wolverhampton","WICKES","64.67","Northicote Farm","5211","Materials","28/10/2016"
"Wolverhampton City Council","http://opendatacommunities.org/id/metropolitan-district-council/wolverhampton","CROWNE PLAZA BIRMINGHA","375.32","Delivery & OCE Development","7011","Accommodation Costs","28/10/2016"
"Wolverhampton City Council","http://opendatacommunities.org/id/metropolitan-district-council/wolverhampton","CROWNE PLAZA BIRMINGHA","375.32","Members Expenses","7011","Accommodation Costs","28/10/2016"
"Wolverhampton City Council","http://opendatacommunities.org/id/metropolitan-district-council/wolverhampton","REGISTRARS OFFICE","10.00","European Liaison","8299","Financial Assistance In Exceptional Circ","28/10/2016"
"Wolverhampton City Council","http://opendatacommunities.org/id/metropolitan-district-council/wolverhampton","Amazon UK Marketplace","65.97","Strategic ICTS (ICT Serv Budget)","5942","Computing - Purchase of Hardware","28/10/2016"
"Wolverhampton City Council","http://opendatacommunities.org/id/metropolitan-district-council/wolverhampton","TWITTER ADVERTISING","40.00","Communications & Marketing - General","7311","Marketing \ Non-staff advertising","28/10/2016"
"Wolverhampton City Council","http://opendatacommunities.org/id/metropolitan-district-council/wolverhampton","MARRIOTT","238.00","Intensive Family Support Team","3509","Conference Expenses","28/10/2016"
"Wolverhampton City Council","http://opendatacommunities.org/id/metropolitan-district-council/wolverhampton","MARRIOTT","238.00","Intensive Family Support Team","3509","Conference Expenses","28/10/2016"
"Wolverhampton City Council","http://opendatacommunities.org/id/metropolitan-district-council/wolverhampton","THE NEW BRIDGE GUEST H","75.00","Emergency Duty Team","7011","Services - Supplies & Services to users","28/10/2016"
"Wolverhampton City Council","http://opendatacommunities.org/id/metropolitan-district-council/wolverhampton","CURRYS ONLINE","391.63","LAC Transitions Team","5732","Client Allowances","28/10/2016"
"Wolverhampton City Council","http://opendatacommunities.org/id/metropolitan-district-council/wolverhampton","Trainline.com Ltd","49.72","LAC Transitions Team","4112","Public Transport","28/10/2016"
"Wolverhampton City Council","http://opendatacommunities.org/id/metropolitan-district-council/wolverhampton","WOLVES FC","40.00","Archives","7997","Books","28/10/2016"
"Wolverhampton City Council","http://opendatacommunities.org/id/metropolitan-district-council/wolverhampton","ASDA SUPERSTORE","18.78","Childrens with Disabilities Team","5411","Provisions (Not for resale)","27/10/2016"
"Wolverhampton City Council","http://opendatacommunities.org/id/metropolitan-district-council/wolverhampton","HOME BARGAINS","43.97","Cemeteries","5251","Equipment - Purchase","27/10/2016"
"Wolverhampton City Council","http://opendatacommunities.org/id/metropolitan-district-council/wolverhampton","BOOTS - 6564","13.33","Cemeteries","5912","Toilet Requisites","27/10/2016"
"Wolverhampton City Council","http://opendatacommunities.org/id/metropolitan-district-council/wolverhampton","Trainline.com Ltd","184.11","Adoption and Residence Team & Allowances","4112","Public Transport","27/10/2016"
"Wolverhampton City Council","http://opendatacommunities.org/id/metropolitan-district-council/wolverhampton","REGISTRARS OFFICE","10.00","Adoption and Residence Team & Allowances","8299","Services - Fees and Charges","27/10/2016"
"Wolverhampton City Council","http://opendatacommunities.org/id/metropolitan-district-council/wolverhampton","THE YORK HOTEL","292.00","CIN/CP S17 SW Unit - Area 6","7011","Furniture","27/10/2016"
"Wolverhampton City Council","http://opendatacommunities.org/id/metropolitan-district-council/wolverhampton","THE LAUGHING STOCK","125.62","Licensing - General","7296","Equipment - Purchase","27/10/2016"
"Wolverhampton City Council","http://opendatacommunities.org/id/metropolitan-district-council/wolverhampton","CARVER/WOLVERHAMPTON/L","15.89","Culwell Street Depot","5211","R&M - Departmental response (external)","27/10/2016"
"Wolverhampton City Council","http://opendatacommunities.org/id/metropolitan-district-council/wolverhampton","SAINSBURYS 2040","80.00","Duke Street Bungalows","5411","Provisions (Not for resale)","27/10/2016"
"Wolverhampton City Council","http://opendatacommunities.org/id/metropolitan-district-council/wolverhampton","NATIONAL EXPRESS LIMIT","11.50","Referral Team CIN - S17","4131","Public Transport","27/10/2016"
"Wolverhampton City Council","http://opendatacommunities.org/id/metropolitan-district-council/wolverhampton","Trainline.com Ltd","212.00","Adoption and Residence Team & Allowances","4112","Client Transport","27/10/2016"
"Wolverhampton City Council","http://opendatacommunities.org/id/metropolitan-district-council/wolverhampton","POUNDLAND LTD 1463","10.92","Global Budgets","5310","Provisions (Not for resale)","27/10/2016"
"Wolverhampton City Council","http://opendatacommunities.org/id/metropolitan-district-council/wolverhampton","DELICE DE FRANCE","78.00","Art Gallery Tea Room","5462","Catering","27/10/2016"
"Wolverhampton City Council","http://opendatacommunities.org/id/metropolitan-district-council/wolverhampton","Amazon UK Marketplace","38.88","Bilston Craft Cafe Project","5942","Equipment - Purchase","27/10/2016"
"Wolverhampton City Council","http://opendatacommunities.org/id/metropolitan-district-council/wolverhampton","WILKO RETAIL LIMIT","5.00","Service Wide","5722","Equipment - Purchase","27/10/2016"
"Wolverhampton City Council","http://opendatacommunities.org/id/metropolitan-district-council/wolverhampton","THE COAL AUTHORITY","180.00","HRA General","9399","Services - Professional Fees","27/10/2016"
"Wolverhampton City Council","http://opendatacommunities.org/id/metropolitan-district-council/wolverhampton","REGISTRARS OFFICE","30.00","Legal Services","8299","Services - Professional Fees","27/10/2016"
"Wolverhampton City Council","http://opendatacommunities.org/id/metropolitan-district-council/wolverhampton","Trainline.com Ltd","218.00","Fostering Team & Allowances","4112","Public Transport","27/10/2016"
"Wolverhampton City Council","http://opendatacommunities.org/id/metropolitan-district-council/wolverhampton","Trainline.com Ltd","176.00","Adoption and Residence Team & Allowances","4112","Public Transport","27/10/2016"
"Wolverhampton City Council","http://opendatacommunities.org/id/metropolitan-district-council/wolverhampton","ARGOS RETAIL GROUP","124.99","EIP Locality 4","5310","Equipment - Purchase","27/10/2016"
"Wolverhampton City Council","http://opendatacommunities.org/id/metropolitan-district-council/wolverhampton","ARGOS RETAIL GROUP","117.45","EIP Locality 4","5310","Equipment - Purchase","27/10/2016"
"Wolverhampton City Council","http://opendatacommunities.org/id/metropolitan-district-council/wolverhampton","ARGOS RETAIL GROUP","17.49","EIP Locality 4","5310","Equipment - Purchase","27/10/2016"
"Wolverhampton City Council","http://opendatacommunities.org/id/metropolitan-district-council/wolverhampton","Amazon UK Marketplace","27.48","Aldersley Leisure Village","5942","Equipment - Purchase","27/10/2016"
"Wolverhampton City Council","http://opendatacommunities.org/id/metropolitan-district-council/wolverhampton","Amazon UK Marketplace","2.72","Central Baths","5942","Equipment - Purchase","27/10/2016"
"Wolverhampton City Council","http://opendatacommunities.org/id/metropolitan-district-council/wolverhampton","Amazon UK Marketplace","8.10","Aldersley Leisure Village","5942","Equipment - Purchase","27/10/2016"
"Wolverhampton City Council","http://opendatacommunities.org/id/metropolitan-district-council/wolverhampton","WWW.GREENSOFGLOUCESTER","30.82","International Trade","5999","Grant Payments","27/10/2016"
"Wolverhampton City Council","http://opendatacommunities.org/id/metropolitan-district-council/wolverhampton","ASDA HOME SHOPPING","102.35","Upper Pendeford Farm Childrens Home","5411","Provisions (Not for resale)","27/10/2016"
"Wolverhampton City Council","http://opendatacommunities.org/id/metropolitan-district-council/wolverhampton","AMAZON UK RETAIL AMAZO","35.63","Electoral Registration","5999","Equipment - Purchase","27/10/2016"
"Wolverhampton City Council","http://opendatacommunities.org/id/metropolitan-district-council/wolverhampton","ARGOS RETAIL GROUP","9.99","Strategic Asset Management - General","5310","Equipment - Purchase","27/10/2016"
"Wolverhampton City Council","http://opendatacommunities.org/id/metropolitan-district-council/wolverhampton","POST OFFICE COUNTER","270.00","Adoption Team","9402","Comms - Postage","27/10/2016"
"Wolverhampton City Council","http://opendatacommunities.org/id/metropolitan-district-council/wolverhampton","THE POST OFFICE","220.00","European Liaison","9402","Financial Assistance In Exceptional Circ","26/10/2016"
"Wolverhampton City Council","http://opendatacommunities.org/id/metropolitan-district-council/wolverhampton","Amazon UK Marketplace","2.78","Aldersley Leisure Village","5942","Equipment - Purchase","26/10/2016"
"Wolverhampton City Council","http://opendatacommunities.org/id/metropolitan-district-council/wolverhampton","Amazon UK Marketplace","23.17","Aldersley Leisure Village","5942","Books","26/10/2016"
"Wolverhampton City Council","http://opendatacommunities.org/id/metropolitan-district-council/wolverhampton","Amazon UK Marketplace","2.07","Aldersley Leisure Village","5942","Equipment - Purchase","26/10/2016"
"Wolverhampton City Council","http://opendatacommunities.org/id/metropolitan-district-council/wolverhampton","BOOTS","2.30","International Trade","5912","Grant Payments","26/10/2016"
"Wolverhampton City Council","http://opendatacommunities.org/id/metropolitan-district-council/wolverhampton","CARVER/WOLVERHAMPTON/L","35.24","Culwell Street Depot","5211","R&M - Departmental planned (external)","26/10/2016"
"Wolverhampton City Council","http://opendatacommunities.org/id/metropolitan-district-council/wolverhampton","THE NEW BRIDGE GUEST H","70.00","Referral Team CIN - S17","7011","Services - Supplies & Services to users","26/10/2016"
"Wolverhampton City Council","http://opendatacommunities.org/id/metropolitan-district-council/wolverhampton","ASDA HOME SHOPPING","-0.60","Ernest Bold Court","5411","Provisions (Not for resale)","26/10/2016"
"Wolverhampton City Council","http://opendatacommunities.org/id/metropolitan-district-council/wolverhampton","ASDA HOME SHOPPING","71.13","Ernest Bold Court","5411","Provisions (Not for resale)","26/10/2016"
"Wolverhampton City Council","http://opendatacommunities.org/id/metropolitan-district-council/wolverhampton","THE QUEEN VICTORIA HOT","220.00","CIN/CP S17 SW Unit - Area 5","7011","Accommodation Costs","26/10/2016"
"Wolverhampton City Council","http://opendatacommunities.org/id/metropolitan-district-council/wolverhampton","THE WORKS","15.00","Global Budgets","5310","Equipment - Purchase","26/10/2016"
"Wolverhampton City Council","http://opendatacommunities.org/id/metropolitan-district-council/wolverhampton","WATERSTONES","100.00","Global Budgets","5942","Books","26/10/2016"
"Wolverhampton City Council","http://opendatacommunities.org/id/metropolitan-district-council/wolverhampton","WILKO RETAIL LIMIT","5.70","Global Budgets","5722","Equipment - Purchase","26/10/2016"
"Wolverhampton City Council","http://opendatacommunities.org/id/metropolitan-district-council/wolverhampton","AMAZON UK RETAIL AMAZO","29.37","Bilston Craft Cafe Project","5999","Equipment - Purchase","26/10/2016"
"Wolverhampton City Council","http://opendatacommunities.org/id/metropolitan-district-council/wolverhampton","Amazon EU","29.37","Bilston Craft Cafe Project","5969","Equipment - Purchase","26/10/2016"
"Wolverhampton City Council","http://opendatacommunities.org/id/metropolitan-district-council/wolverhampton","Amazon EU","29.37","Bilston Craft Cafe Project","5969","Equipment - Purchase","26/10/2016"
"Wolverhampton City Council","http://opendatacommunities.org/id/metropolitan-district-council/wolverhampton","ROYAL BK OF SCOTLAND","120.00","Duke Street Bungalows","6011","Public Transport","26/10/2016"
"Wolverhampton City Council","http://opendatacommunities.org/id/metropolitan-district-council/wolverhampton","ARGOS LTD","41.65","Legal Services","5310","Stationery","26/10/2016"
"Wolverhampton City Council","http://opendatacommunities.org/id/metropolitan-district-council/wolverhampton","SAINSBURYS SACAT (2340","12.00","Mayoral Expenses","5411","Hospitality","26/10/2016"
"Wolverhampton City Council","http://opendatacommunities.org/id/metropolitan-district-council/wolverhampton","CARVER/WOLVERHAMPTON/L","53.72","Graffiti Removal Team","5211","Materials","26/10/2016"
"Wolverhampton City Council","http://opendatacommunities.org/id/metropolitan-district-council/wolverhampton","Amazon UK Marketplace","8.28","Parks - Management and Admin","5942","Equipment - Purchase","26/10/2016"
"Wolverhampton City Council","http://opendatacommunities.org/id/metropolitan-district-council/wolverhampton","ARGOS LTD","8.32","Cemeteries","5310","Equipment - Purchase","26/10/2016"
"Wolverhampton City Council","http://opendatacommunities.org/id/metropolitan-district-council/wolverhampton","Trainline.com Ltd","195.74","Adoption and Residence Team & Allowances","4112","Public Transport","26/10/2016"
"Wolverhampton City Council","http://opendatacommunities.org/id/metropolitan-district-council/wolverhampton","INTERFLORA BRITISH UNI","76.00","Adoption and Residence Team & Allowances","5992","Financial Assistance In Exceptional Circ","26/10/2016"
"Wolverhampton City Council","http://opendatacommunities.org/id/metropolitan-district-council/wolverhampton","THE YORK HOTEL","300.00","CIN/CP S17 SW Unit - Area 6","7011","Services - Supplies & Services to users","26/10/2016"
"Wolverhampton City Council","http://opendatacommunities.org/id/metropolitan-district-council/wolverhampton","Trainline.com Ltd","59.05","Members Expenses","4112","Public Transport","26/10/2016"
"Wolverhampton City Council","http://opendatacommunities.org/id/metropolitan-district-council/wolverhampton","Virgintrains.co.uk","-133.50","Mayoral Expenses","4112","Public Transport","25/10/2016"
"Wolverhampton City Council","http://opendatacommunities.org/id/metropolitan-district-council/wolverhampton","PAYPAL  RUBBERPLANT","5.36","Licensing - General","5999","Equipment - Purchase","25/10/2016"
"Wolverhampton City Council","http://opendatacommunities.org/id/metropolitan-district-council/wolverhampton","PAYPAL  UNIQUELITTL","31.96","Licensing - General","5331","Equipment - Purchase","25/10/2016"
"Wolverhampton City Council","http://opendatacommunities.org/id/metropolitan-district-council/wolverhampton","PAYPAL  PARTYGROTTO","13.16","Licensing - General","5311","Equipment - Purchase","25/10/2016"
"Wolverhampton City Council","http://opendatacommunities.org/id/metropolitan-district-council/wolverhampton","PAYPAL  PARTYGROTTO","15.96","Licensing - General","5311","Equipment - Purchase","25/10/2016"
"Wolverhampton City Council","http://opendatacommunities.org/id/metropolitan-district-council/wolverhampton","PAYPAL  PARTYGROTTO","13.16","Licensing - General","5311","Equipment - Purchase","25/10/2016"
"Wolverhampton City Council","http://opendatacommunities.org/id/metropolitan-district-council/wolverhampton","PAYPAL  PARTYGROTTO","13.16","Licensing - General","5311","Equipment - Purchase","25/10/2016"
"Wolverhampton City Council","http://opendatacommunities.org/id/metropolitan-district-council/wolverhampton","PAYPAL  PARTYGROTTO","15.96","Licensing - General","5311","Equipment - Purchase","25/10/2016"
"Wolverhampton City Council","http://opendatacommunities.org/id/metropolitan-district-council/wolverhampton","AO RETAIL LIMITED","275.00","LAC Transitions Team","5722","Client Allowances","25/10/2016"
"Wolverhampton City Council","http://opendatacommunities.org/id/metropolitan-district-council/wolverhampton","Trainline.com Ltd","200.94","SWP - Infrastructure","4112","Public Transport","25/10/2016"
"Wolverhampton City Council","http://opendatacommunities.org/id/metropolitan-district-council/wolverhampton","Trainline.com Ltd","31.98","SWP - Infrastructure","4112","Public Transport","25/10/2016"
"Wolverhampton City Council","http://opendatacommunities.org/id/metropolitan-district-council/wolverhampton","UOW PRINT SERVICES","625.00","Civic Centre","8220","Printing","25/10/2016"
"Wolverhampton City Council","http://opendatacommunities.org/id/metropolitan-district-council/wolverhampton","WWW.PRINTED4U.CO.U","340.93","WV Active Business Support","5943","Equipment - Purchase","25/10/2016"
"Wolverhampton City Council","http://opendatacommunities.org/id/metropolitan-district-council/wolverhampton","SCREWFIX DIRECT","25.86","Public Conveniences","5211","Equipment - Purchase","25/10/2016"
"Wolverhampton City Council","http://opendatacommunities.org/id/metropolitan-district-council/wolverhampton","Amazon EU","83.82","Strategic ICTS (ICT Serv Budget)","5969","Computing - Purchase of Hardware","25/10/2016"
"Wolverhampton City Council","http://opendatacommunities.org/id/metropolitan-district-council/wolverhampton","BOOTS.COM","161.04","International Trade","5912","Grant Payments","25/10/2016"
"Wolverhampton City Council","http://opendatacommunities.org/id/metropolitan-district-council/wolverhampton","UNI OF WOLVERHAMPT","96.00","Communications & Marketing - General","8220","Printing","25/10/2016"
"Wolverhampton City Council","http://opendatacommunities.org/id/metropolitan-district-council/wolverhampton","UNI OF WOLVERHAMPT","17.00","Communications & Marketing - General","8220","Printing","25/10/2016"
"Wolverhampton City Council","http://opendatacommunities.org/id/metropolitan-district-council/wolverhampton","POUNDWORLD 308","10.03","LAC Transitions Team","5310","Client Allowances","25/10/2016"
"Wolverhampton City Council","http://opendatacommunities.org/id/metropolitan-district-council/wolverhampton","CASH CONVERTERS","4.16","LAC Transitions Team","5931","Client Allowances","25/10/2016"
"Wolverhampton City Council","http://opendatacommunities.org/id/metropolitan-district-council/wolverhampton","B&M RETAIL","8.35","Headstart","5310","Equipment - Purchase","25/10/2016"
"Wolverhampton City Council","http://opendatacommunities.org/id/metropolitan-district-council/wolverhampton","DINING ROOM","3.95","Headstart","8220","Provisions (Not for resale)","25/10/2016"
"Wolverhampton City Council","http://opendatacommunities.org/id/metropolitan-district-council/wolverhampton","MAILCHIMP","41.50","City Direct","7399","Equipment - Purchase","25/10/2016"
"Wolverhampton City Council","http://opendatacommunities.org/id/metropolitan-district-council/wolverhampton","ASDA SUPERSTORE","90.83","Jane & Louise Wilson (Art Gallery)","5411","Equipment - Purchase","25/10/2016"
"Wolverhampton City Council","http://opendatacommunities.org/id/metropolitan-district-council/wolverhampton","Trainline.com Ltd","109.91","Connexions Contract","4112","Public Transport","25/10/2016"
"Wolverhampton City Council","http://opendatacommunities.org/id/metropolitan-district-council/wolverhampton","B&M RETAIL","33.50","Wolverhampton Indoor and Open Market","5310","Equipment - Purchase","25/10/2016"
"Wolverhampton City Council","http://opendatacommunities.org/id/metropolitan-district-council/wolverhampton","HUGHES","408.33","LAC Transitions Team","5732","Client Allowances","25/10/2016"
"Wolverhampton City Council","http://opendatacommunities.org/id/metropolitan-district-council/wolverhampton","HUGHES","408.33","LAC Transitions Team","5732","Client Allowances","25/10/2016"
"Wolverhampton City Council","http://opendatacommunities.org/id/metropolitan-district-council/wolverhampton","Amazon EU","14.99","Global Budgets","5969","Books","25/10/2016"
"Wolverhampton City Council","http://opendatacommunities.org/id/metropolitan-district-council/wolverhampton","B&M RETAIL","116.65","LAC Transitions Team","5310","Client Allowances","25/10/2016"
"Wolverhampton City Council","http://opendatacommunities.org/id/metropolitan-district-council/wolverhampton","ASDA HOME SHOPPING","-0.12","Ernest Bold Court","5411","Provisions (Not for resale)","25/10/2016"
"Wolverhampton City Council","http://opendatacommunities.org/id/metropolitan-district-council/wolverhampton","ASDA HOME SHOPPING","29.76","Ernest Bold Court","5411","Provisions (Not for resale)","25/10/2016"
"Wolverhampton City Council","http://opendatacommunities.org/id/metropolitan-district-council/wolverhampton","BARCLAYS BANK PLC","200.00","CIN/CP S17 SW Unit - Area 5","6011","Financial Assistance In Exceptional Circ","25/10/2016"
"Wolverhampton City Council","http://opendatacommunities.org/id/metropolitan-district-council/wolverhampton","BARCLAYS BANK PLC","200.00","CIN/CP S17 SW Unit - Area 5","6011","Financial Assistance In Exceptional Circ","25/10/2016"
"Wolverhampton City Council","http://opendatacommunities.org/id/metropolitan-district-council/wolverhampton","LIDDELL ELECTRICAL DIS","47.30","Strategy & Development","5065","Equipment - Purchase","25/10/2016"
"Wolverhampton City Council","http://opendatacommunities.org/id/metropolitan-district-council/wolverhampton","THE FLOWER STALL","75.00","Mayoral Expenses","5992","Hospitality","25/10/2016"
"Wolverhampton City Council","http://opendatacommunities.org/id/metropolitan-district-council/wolverhampton","Trainline.com Ltd","137.00","Fostering Team & Allowances","4112","Public Transport","25/10/2016"
"Wolverhampton City Council","http://opendatacommunities.org/id/metropolitan-district-council/wolverhampton","Trainline.com Ltd","171.80","Fostering Team & Allowances","4112","Public Transport","25/10/2016"
"Wolverhampton City Council","http://opendatacommunities.org/id/metropolitan-district-council/wolverhampton","ROYAL CARPETS","208.33","EIP Locality 3","5713","Equipment - Purchase","25/10/2016"
"Wolverhampton City Council","http://opendatacommunities.org/id/metropolitan-district-council/wolverhampton","ROYAL CARPETS","208.33","EIP Locality 3","5713","Equipment - Purchase","25/10/2016"
"Wolverhampton City Council","http://opendatacommunities.org/id/metropolitan-district-council/wolverhampton","ROYAL CARPETS","16.67","EIP Locality 3","5713","Equipment - Purchase","25/10/2016"
"Wolverhampton City Council","http://opendatacommunities.org/id/metropolitan-district-council/wolverhampton","Trainline.com Ltd","39.68","CIN/CP Social Work Unit - Area 8","4112","Public Transport","25/10/2016"
"Wolverhampton City Council","http://opendatacommunities.org/id/metropolitan-district-council/wolverhampton","Trainline.com Ltd","46.61","Adoption and Residence Team & Allowances","4112","Public Transport","25/10/2016"
"Wolverhampton City Council","http://opendatacommunities.org/id/metropolitan-district-council/wolverhampton","REGISTRARS OFFICE","20.00","Adoption and Residence Team & Allowances","8299","Services - Fees and Charges","25/10/2016"
"Wolverhampton City Council","http://opendatacommunities.org/id/metropolitan-district-council/wolverhampton","WWW.PROP4SHOWS.O.UK","155.17","Contemporary Gallery","5699","Equipment - Purchase","25/10/2016"
"Wolverhampton City Council","http://opendatacommunities.org/id/metropolitan-district-council/wolverhampton","ABSOLUTE MUSIC","359.43","Music Support Team","5733","Equipment - Purchase","24/10/2016"
"Wolverhampton City Council","http://opendatacommunities.org/id/metropolitan-district-council/wolverhampton","PREMIER INN","-39.98","Childrens with Disabilities Team","3811","Services - Supplies & Services to users","24/10/2016"
"Wolverhampton City Council","http://opendatacommunities.org/id/metropolitan-district-council/wolverhampton","PREMIER INN","94.15","Childrens with Disabilities Team","3811","Services - Supplies & Services to users","24/10/2016"
"Wolverhampton City Council","http://opendatacommunities.org/id/metropolitan-district-council/wolverhampton","WCC PHONE PAYMENTS","152.15","Childrens with Disabilities Team","9399","Services - Fees and Charges","24/10/2016"
"Wolverhampton City Council","http://opendatacommunities.org/id/metropolitan-district-council/wolverhampton","AMAZON UK RETAIL AMAZO","13.10","Northicote Farm","5999","Equipment - Purchase","24/10/2016"
"Wolverhampton City Council","http://opendatacommunities.org/id/metropolitan-district-council/wolverhampton","Amazon UK Marketplace","5.63","Northicote Farm","5942","Equipment - Purchase","24/10/2016"
"Wolverhampton City Council","http://opendatacommunities.org/id/metropolitan-district-council/wolverhampton","AMAZON UK RETAIL AMAZO","12.49","Assistant Director - Public Health","5999","Equipment - Purchase","24/10/2016"
"Wolverhampton City Council","http://opendatacommunities.org/id/metropolitan-district-council/wolverhampton","Amazon EU","252.89","Language Studies Delivery Area","5969","Equipment - Purchase","24/10/2016"
"Wolverhampton City Council","http://opendatacommunities.org/id/metropolitan-district-council/wolverhampton","S & B WASTE","166.50","Central Costs","4900","Grounds Maintenance - Non Contract","24/10/2016"
"Wolverhampton City Council","http://opendatacommunities.org/id/metropolitan-district-council/wolverhampton","Amazon UK Marketplace","-45.97","Electoral Registration","5999","Equipment - Purchase","24/10/2016"
"Wolverhampton City Council","http://opendatacommunities.org/id/metropolitan-district-council/wolverhampton","LOYD 37 CHURCH STREET","200.00","EIP Locality 8","6011","Financial Assistance In Exceptional Circ","24/10/2016"
"Wolverhampton City Council","http://opendatacommunities.org/id/metropolitan-district-council/wolverhampton","LOYD 37 CHURCH STREET","30.00","EIP Locality 8","6011","Financial Assistance In Exceptional Circ","24/10/2016"
"Wolverhampton City Council","http://opendatacommunities.org/id/metropolitan-district-council/wolverhampton","BIRMINGHAM","314.08","EIP Locality 8","7991","Educ Trips, Holidays, Outings, Activity","24/10/2016"
"Wolverhampton City Council","http://opendatacommunities.org/id/metropolitan-district-council/wolverhampton","CENTRAL ENG COOP","12.05","Headstart","5311","Provisions (Not for resale)","24/10/2016"
"Wolverhampton City Council","http://opendatacommunities.org/id/metropolitan-district-council/wolverhampton","WM MORRISON 063","330.00","Headstart","5411","Conference Expenses","24/10/2016"
"Wolverhampton City Council","http://opendatacommunities.org/id/metropolitan-district-council/wolverhampton","123 REG R/T","59.88","City Direct","5968","Subscriptions","24/10/2016"
"Wolverhampton City Council","http://opendatacommunities.org/id/metropolitan-district-council/wolverhampton","YOUNGS SHOE REPAIRS LI","14.75","Wolverhampton Indoor and Open Market","7251","Fixtures and Fittings - R&M","24/10/2016"
"Wolverhampton City Council","http://opendatacommunities.org/id/metropolitan-district-council/wolverhampton","Trainline.com Ltd","221.00","Parent / Partnership Service","4112","Public Transport","24/10/2016"
"Wolverhampton City Council","http://opendatacommunities.org/id/metropolitan-district-council/wolverhampton","TYLERS OF BILSTON","49.99","City Direct","5732","Equipment - Purchase","24/10/2016"
"Wolverhampton City Council","http://opendatacommunities.org/id/metropolitan-district-council/wolverhampton","AO RETAIL LIMITED","239.00","LAC Transitions Team","5722","Client Allowances","24/10/2016"
"Wolverhampton City Council","http://opendatacommunities.org/id/metropolitan-district-council/wolverhampton","ARGOS RETAIL GROUP","34.99","LAC Transitions Team","5310","Financial Assistance In Exceptional Circ","24/10/2016"
"Wolverhampton City Council","http://opendatacommunities.org/id/metropolitan-district-council/wolverhampton","Trainline.com Ltd","103.10","Corporate Procurement Unit","4112","Public Transport","24/10/2016"
"Wolverhampton City Council","http://opendatacommunities.org/id/metropolitan-district-council/wolverhampton","ASDA SUPERSTORE","5.00","Central Baths","5411","Equipment - Purchase","24/10/2016"
"Wolverhampton City Council","http://opendatacommunities.org/id/metropolitan-district-council/wolverhampton","WWW.JPLEISURE.CO.UK","182.61","Central Baths","5722","Equipment - Purchase","24/10/2016"
"Wolverhampton City Council","http://opendatacommunities.org/id/metropolitan-district-council/wolverhampton","HOME BARGAINS","3.32","WV Active Business Support","5251","Stationery","24/10/2016"
"Wolverhampton City Council","http://opendatacommunities.org/id/metropolitan-district-council/wolverhampton","CORPORATE INSIGNIA LTD","64.60","WV Active Business Support","5943","Clothing / Uniforms","24/10/2016"
"Wolverhampton City Council","http://opendatacommunities.org/id/metropolitan-district-council/wolverhampton","GODADDY COM EUROPE","30.91","Communications & Marketing - General","4816","Computing - Purchase of Software","24/10/2016"
"Wolverhampton City Council","http://opendatacommunities.org/id/metropolitan-district-council/wolverhampton","CTRIP SH HUACHENG TRAV","155.70","International Trade","5962","Grant Payments","24/10/2016"
"Wolverhampton City Council","http://opendatacommunities.org/id/metropolitan-district-council/wolverhampton","CTRIP SH HUACHENG TRAV","155.70","International Trade","5962","Grant Payments","24/10/2016"
"Wolverhampton City Council","http://opendatacommunities.org/id/metropolitan-district-council/wolverhampton","CTRIP SH HUACHENG TRAV","155.70","International Trade","5962","Grant Payments","24/10/2016"
"Wolverhampton City Council","http://opendatacommunities.org/id/metropolitan-district-council/wolverhampton","CTRIP SH HUACHENG TRAV","155.70","International Trade","5962","Grant Payments","24/10/2016"
"Wolverhampton City Council","http://opendatacommunities.org/id/metropolitan-district-council/wolverhampton","K WEST HOTEL & SPA","555.00","Strategic Director Place","7011","Accommodation Costs","24/10/2016"
"Wolverhampton City Council","http://opendatacommunities.org/id/metropolitan-district-council/wolverhampton","K WEST HOTEL & SPA","569.95","Strategic Director Place","7011","Accommodation Costs","24/10/2016"
"Wolverhampton City Council","http://opendatacommunities.org/id/metropolitan-district-council/wolverhampton","K WEST HOTEL & SPA","569.95","Strategic Director Place","7011","Accommodation Costs","24/10/2016"
"Wolverhampton City Council","http://opendatacommunities.org/id/metropolitan-district-council/wolverhampton","DUNELM (SOFT FURNISHIN","30.97","Civic Centre Catering","5714","Equipment - Purchase","24/10/2016"
"Wolverhampton City Council","http://opendatacommunities.org/id/metropolitan-district-council/wolverhampton","WWW.ADASS.ORG.UK","250.00","Workforce Development","8398","Training Expenses","24/10/2016"
"Wolverhampton City Council","http://opendatacommunities.org/id/metropolitan-district-council/wolverhampton","UK LRS LTD","20.95","Legal Services","7375","Services - Professional Fees","24/10/2016"
"Wolverhampton City Council","http://opendatacommunities.org/id/metropolitan-district-council/wolverhampton","REGISTRARS OFFICE","30.00","Head of Service - CINCP","8299","Services - Professional Fees","24/10/2016"
"Wolverhampton City Council","http://opendatacommunities.org/id/metropolitan-district-council/wolverhampton","REGISTRARS OFFICE","27.00","Head of Service - CINCP","8299","Services - Professional Fees","24/10/2016"
"Wolverhampton City Council","http://opendatacommunities.org/id/metropolitan-district-council/wolverhampton","PAYPAL  STANLEYYEO8","16.58","Mayoral Expenses","5331","Clothing / Uniforms","24/10/2016"
"Wolverhampton City Council","http://opendatacommunities.org/id/metropolitan-district-council/wolverhampton","AWESOMEMERCHANDISE","70.83","School Improvement","2741","Publications","24/10/2016"
"Wolverhampton City Council","http://opendatacommunities.org/id/metropolitan-district-council/wolverhampton","ARGOS RETAIL GROUP","223.91","Fostering Team & Allowances","5310","Equipment - Purchase","24/10/2016"
"Wolverhampton City Council","http://opendatacommunities.org/id/metropolitan-district-council/wolverhampton","ARGOS RETAIL GROUP","74.97","Northicote Farm","5310","Equipment - Purchase","24/10/2016"
"Wolverhampton City Council","http://opendatacommunities.org/id/metropolitan-district-council/wolverhampton","C I H","380.00","Housing Regeneration - Strategy & Dev","8641","Events","24/10/2016"
"Wolverhampton City Council","http://opendatacommunities.org/id/metropolitan-district-council/wolverhampton","B&M RETAIL","39.95","EIP Locality 1","5310","Equipment - Purchase","24/10/2016"
"Wolverhampton City Council","http://opendatacommunities.org/id/metropolitan-district-council/wolverhampton","WM MORRISON 024","23.38","Craftplay","5411","Provisions (Not for resale)","24/10/2016"
"Wolverhampton City Council","http://opendatacommunities.org/id/metropolitan-district-council/wolverhampton","WWW.STAPLES.CO.UK","8.74","Towers Outdoor Education Centre","5943","Stationery","24/10/2016"
"Wolverhampton City Council","http://opendatacommunities.org/id/metropolitan-district-council/wolverhampton","WWW.STAPLES.CO.UK","16.32","Towers Outdoor Education Centre","5943","Stationery","24/10/2016"
"Wolverhampton City Council","http://opendatacommunities.org/id/metropolitan-district-council/wolverhampton","WIX.COM","46.57","Technical Support","5817","Computing - Purchase of Software","24/10/2016"
"Wolverhampton City Council","http://opendatacommunities.org/id/metropolitan-district-council/wolverhampton","Amazon UK Marketplace","7.94","Global Budgets","5942","Books","24/10/2016"
"Wolverhampton City Council","http://opendatacommunities.org/id/metropolitan-district-council/wolverhampton","W M MORRISON PLC","3.00","Ernest Bold Court","5411","Provisions (Not for resale)","24/10/2016"
"Wolverhampton City Council","http://opendatacommunities.org/id/metropolitan-district-council/wolverhampton","ASDA HOME SHOPPING","0.52","Ernest Bold Court","5411","Provisions (Not for resale)","24/10/2016"
"Wolverhampton City Council","http://opendatacommunities.org/id/metropolitan-district-council/wolverhampton","ASDA HOME SHOPPING","94.06","Ernest Bold Court","5411","Provisions (Not for resale)","24/10/2016"
"Wolverhampton City Council","http://opendatacommunities.org/id/metropolitan-district-council/wolverhampton","VERIFONE TAXI/PRIVATE","3.85","CIN/CP S17 SW Unit - Area 6","4121","Client Transport","24/10/2016"
"Wolverhampton City Council","http://opendatacommunities.org/id/metropolitan-district-council/wolverhampton","GO CARZ","27.90","CIN/CP S17 SW Unit - Area 5","4121","Client Transport","24/10/2016"
"Wolverhampton City Council","http://opendatacommunities.org/id/metropolitan-district-council/wolverhampton","K WEST HOTEL & SPA","778.95","Strategic Director Place","7011","Accommodation Costs","24/10/2016"
"Wolverhampton City Council","http://opendatacommunities.org/id/metropolitan-district-council/wolverhampton","THE POST OFFICE","220.00","European Liaison","9402","Financial Assistance In Exceptional Circ","21/10/2016"
"Wolverhampton City Council","http://opendatacommunities.org/id/metropolitan-district-council/wolverhampton","THE POST OFFICE","220.00","European Liaison","9402","Financial Assistance In Exceptional Circ","21/10/2016"
"Wolverhampton City Council","http://opendatacommunities.org/id/metropolitan-district-council/wolverhampton","Amazon EU","15.57","Central Baths","5969","Equipment - Purchase","21/10/2016"
"Wolverhampton City Council","http://opendatacommunities.org/id/metropolitan-district-council/wolverhampton","CURRYS ONLINE","74.97","Aldersley Leisure Village","5732","Equipment - Purchase","21/10/2016"
"Wolverhampton City Council","http://opendatacommunities.org/id/metropolitan-district-council/wolverhampton","NET WORLD SPORTS","98.28","Aldersley Leisure Village","5941","Equipment - Purchase","21/10/2016"
"Wolverhampton City Council","http://opendatacommunities.org/id/metropolitan-district-council/wolverhampton","WWW.LIFESAVERSDIRECT","328.00","WV Active Business Support","5965","Services - Fees and Charges","21/10/2016"
"Wolverhampton City Council","http://opendatacommunities.org/id/metropolitan-district-council/wolverhampton","ASDA HOME SHOPPING","253.10","Upper Pendeford Farm Childrens Home","5411","Provisions (Not for resale)","21/10/2016"
"Wolverhampton City Council","http://opendatacommunities.org/id/metropolitan-district-council/wolverhampton","ASDA HOME SHOPPING","0.28","Upper Pendeford Farm Childrens Home","5411","Provisions (Not for resale)","21/10/2016"
"Wolverhampton City Council","http://opendatacommunities.org/id/metropolitan-district-council/wolverhampton","DVLA DRIVER ONLINE","34.00","LAC Transitions Team","9399","Client Allowances","21/10/2016"
"Wolverhampton City Council","http://opendatacommunities.org/id/metropolitan-district-council/wolverhampton","PARKING SERVICES","6.50","Headstart","8299","Training Expenses","21/10/2016"
"Wolverhampton City Council","http://opendatacommunities.org/id/metropolitan-district-council/wolverhampton","HSBC CASH MACHINE","300.00","Headstart Phase 3","6011","Equipment - Purchase","21/10/2016"
"Wolverhampton City Council","http://opendatacommunities.org/id/metropolitan-district-council/wolverhampton","CUMMINGS BROTHERS LOCK","25.00","Priory Green","7399","R&M - Departmental planned (external)","21/10/2016"
"Wolverhampton City Council","http://opendatacommunities.org/id/metropolitan-district-council/wolverhampton","CUMMINGS BROTHERS LOCK","5.83","Culwell Street Depot","7399","R&M - Departmental planned (external)","21/10/2016"
"Wolverhampton City Council","http://opendatacommunities.org/id/metropolitan-district-council/wolverhampton","CUMMINGS BROTHERS LOCK","11.25","Caretakers Community Centre","7399","R&M - Departmental planned (external)","21/10/2016"
"Wolverhampton City Council","http://opendatacommunities.org/id/metropolitan-district-council/wolverhampton","HUGHES","173.26","EIP Locality 3","5732","Financial Assistance In Exceptional Circ","21/10/2016"
"Wolverhampton City Council","http://opendatacommunities.org/id/metropolitan-district-council/wolverhampton","LIDL UK","4.99","Ernest Bold Court","5411","Provisions (Not for resale)","21/10/2016"
"Wolverhampton City Council","http://opendatacommunities.org/id/metropolitan-district-council/wolverhampton","SAINSBURYS 2040","3.50","Ernest Bold Court","5411","Provisions (Not for resale)","21/10/2016"
"Wolverhampton City Council","http://opendatacommunities.org/id/metropolitan-district-council/wolverhampton","Amazon UK Marketplace","-73.80","Members Expenses","5999","Equipment - Purchase","21/10/2016"
"Wolverhampton City Council","http://opendatacommunities.org/id/metropolitan-district-council/wolverhampton","POST OFFICE COUNTER","119.00","Inclusion Support","9402","Comms - Postage","21/10/2016"
"Wolverhampton City Council","http://opendatacommunities.org/id/metropolitan-district-council/wolverhampton","POST OFFICE COUNTER","183.00","Safeguarding Admin Resource","9402","Comms - Postage","21/10/2016"
"Wolverhampton City Council","http://opendatacommunities.org/id/metropolitan-district-council/wolverhampton","EVENT FURNITURE LIMITE","761.65","Civic Halls Non Direct Management A/C","7394","Equipment - Purchase","21/10/2016"
"Wolverhampton City Council","http://opendatacommunities.org/id/metropolitan-district-council/wolverhampton","PARKING SERVICES","300.00","Civic Hall Out-house Promotions","8299","Parking Fees","21/10/2016"
"Wolverhampton City Council","http://opendatacommunities.org/id/metropolitan-district-council/wolverhampton","WOLVERHAMPTON CITY COU","21.00","Civic Halls Non Direct Management A/C","9399","Services - General Licences","21/10/2016"
"Wolverhampton City Council","http://opendatacommunities.org/id/metropolitan-district-council/wolverhampton","WWW.FTA.CO.UK","200.00","Fleet Management","8999","Stationery","21/10/2016"
"Wolverhampton City Council","http://opendatacommunities.org/id/metropolitan-district-council/wolverhampton","PAYPAL  BUNZLRETAIL","58.90","Ernest Bold Court","5047","Services - Professional Fees","21/10/2016"
"Wolverhampton City Council","http://opendatacommunities.org/id/metropolitan-district-council/wolverhampton","BRITANNIA WOLVERHA","8.33","CIN/CP S17 SW Unit - Area 4","7011","No Recourse to Public Funds","21/10/2016"
"Wolverhampton City Council","http://opendatacommunities.org/id/metropolitan-district-council/wolverhampton","TFM FARM & COUNTRY SUP","42.02","Pendeford Nature Reserve","5399","Equipment - Purchase","21/10/2016"
"Wolverhampton City Council","http://opendatacommunities.org/id/metropolitan-district-council/wolverhampton","Amazon UK Marketplace","40.54","EIP Locality 7","5942","Books","21/10/2016"
"Wolverhampton City Council","http://opendatacommunities.org/id/metropolitan-district-council/wolverhampton","NETWORK WEST MIDLANDS","420.00","CIN/CP S17 SW Unit - Area 3A","9399","Public Transport","21/10/2016"
"Wolverhampton City Council","http://opendatacommunities.org/id/metropolitan-district-council/wolverhampton","AMAZON UK RETAIL AMAZO","14.05","Northicote Farm","5999","Equipment - Purchase","21/10/2016"
"Wolverhampton City Council","http://opendatacommunities.org/id/metropolitan-district-council/wolverhampton","Amazon EU","12.97","Northicote Farm","5969","Equipment - Purchase","21/10/2016"
"Wolverhampton City Council","http://opendatacommunities.org/id/metropolitan-district-council/wolverhampton","BERT WILLIAMS LEISURE","220.00","European Liaison","8299","Financial Assistance In Exceptional Circ","21/10/2016"
"Wolverhampton City Council","http://opendatacommunities.org/id/metropolitan-district-council/wolverhampton","Bose Limited","83.29","SEN Early Years Team","5732","Equipment - Purchase","20/10/2016"
"Wolverhampton City Council","http://opendatacommunities.org/id/metropolitan-district-council/wolverhampton","Mimeo","308.76","School Improvement","7338","Printing","20/10/2016"
"Wolverhampton City Council","http://opendatacommunities.org/id/metropolitan-district-council/wolverhampton","AWESOMEMERCHANDISE","541.67","School Improvement","2741","Publications","20/10/2016"
"Wolverhampton City Council","http://opendatacommunities.org/id/metropolitan-district-council/wolverhampton","Trainline.com Ltd","190.40","Fostering Team & Allowances","4112","Public Transport","20/10/2016"
"Wolverhampton City Council","http://opendatacommunities.org/id/metropolitan-district-council/wolverhampton","ROYAL MAIL CHARGES","1.50","Revenues","9402","Comms - Postage","20/10/2016"
"Wolverhampton City Council","http://opendatacommunities.org/id/metropolitan-district-council/wolverhampton","Trainline.com Ltd","453.39","Revenues","4112","Public Transport","20/10/2016"
"Wolverhampton City Council","http://opendatacommunities.org/id/metropolitan-district-council/wolverhampton","UNTOUCHABLES","47.29","Cemeteries","5231","Materials","20/10/2016"
"Wolverhampton City Council","http://opendatacommunities.org/id/metropolitan-district-council/wolverhampton","ARGOS LTD","49.98","Cemeteries","5310","Equipment - Purchase","20/10/2016"
"Wolverhampton City Council","http://opendatacommunities.org/id/metropolitan-district-council/wolverhampton","Amazon UK Marketplace","51.80","Street Cleansing Overheads","5942","Equipment - Purchase","20/10/2016"
"Wolverhampton City Council","http://opendatacommunities.org/id/metropolitan-district-council/wolverhampton","PREMIER INN","66.66","Adoption and Residence Team & Allowances","3811","Accommodation Costs","20/10/2016"
"Wolverhampton City Council","http://opendatacommunities.org/id/metropolitan-district-council/wolverhampton","Amazon UK Marketplace","14.08","Maintenance & Technical Materials","5942","Equipment - Purchase","20/10/2016"
"Wolverhampton City Council","http://opendatacommunities.org/id/metropolitan-district-council/wolverhampton","B & Q 1243","18.10","Public Conveniences","5211","Equipment - Purchase","20/10/2016"
"Wolverhampton City Council","http://opendatacommunities.org/id/metropolitan-district-council/wolverhampton","THE POST OFFICE","220.00","European Liaison","9402","Financial Assistance In Exceptional Circ","20/10/2016"
"Wolverhampton City Council","http://opendatacommunities.org/id/metropolitan-district-council/wolverhampton","Amazon UK Marketplace","7.47","Northicote Farm","5942","Equipment - Purchase","20/10/2016"
"Wolverhampton City Council","http://opendatacommunities.org/id/metropolitan-district-council/wolverhampton","TESCO STORES 5194","-0.85","Towers Outdoor Education Centre","5411","Provisions (Not for resale)","20/10/2016"
"Wolverhampton City Council","http://opendatacommunities.org/id/metropolitan-district-council/wolverhampton","TESCO DELIVERY SAVER2","2.50","Towers Outdoor Education Centre","5968","Subscriptions","20/10/2016"
"Wolverhampton City Council","http://opendatacommunities.org/id/metropolitan-district-council/wolverhampton","ASDA HOME SHOPPING","-2.24","Ernest Bold Court","5411","Provisions (Not for resale)","20/10/2016"
"Wolverhampton City Council","http://opendatacommunities.org/id/metropolitan-district-council/wolverhampton","ASDA HOME SHOPPING","59.16","Ernest Bold Court","5411","Provisions (Not for resale)","20/10/2016"
"Wolverhampton City Council","http://opendatacommunities.org/id/metropolitan-district-council/wolverhampton","SAINSBURYS 2040","3.56","Ernest Bold Court","5411","Provisions (Not for resale)","20/10/2016"
"Wolverhampton City Council","http://opendatacommunities.org/id/metropolitan-district-council/wolverhampton","Trainline.com Ltd","118.10","Members Expenses","4112","Public Transport","20/10/2016"
"Wolverhampton City Council","http://opendatacommunities.org/id/metropolitan-district-council/wolverhampton","BRITANNIA","235.83","CIN/CP S17 SW Unit - Area 4","7011","No Recourse to Public Funds","20/10/2016"
"Wolverhampton City Council","http://opendatacommunities.org/id/metropolitan-district-council/wolverhampton","DUNELM (SOFT FURNISHIN","51.96","Civic Centre Catering","5714","Equipment - Purchase","20/10/2016"
"Wolverhampton City Council","http://opendatacommunities.org/id/metropolitan-district-council/wolverhampton","SAINSBURYS (2340)","12.75","Civic Centre Catering","5411","Provisions (Not for resale)","20/10/2016"
"Wolverhampton City Council","http://opendatacommunities.org/id/metropolitan-district-council/wolverhampton","E01350800000000","60.00","Ernest Bold Court","6011","Financial Assistance In Exceptional Circ","20/10/2016"
"Wolverhampton City Council","http://opendatacommunities.org/id/metropolitan-district-council/wolverhampton","MARSTON BOOK LTD","145.10","Legal Services","5969","Books","20/10/2016"
"Wolverhampton City Council","http://opendatacommunities.org/id/metropolitan-district-council/wolverhampton","GRO HM PASSPORT OFFICE","27.75","Head of Service - CINCP","9399","Services - Professional Fees","20/10/2016"
"Wolverhampton City Council","http://opendatacommunities.org/id/metropolitan-district-council/wolverhampton","Bose Limited","83.29","SEN Early Years Team","5732","Equipment - Purchase","20/10/2016"
"Wolverhampton City Council","http://opendatacommunities.org/id/metropolitan-district-council/wolverhampton","AMAZON UK RETAIL AMAZO","105.68","Strategic ICTS (ICT Serv Budget)","5999","Equipment - Purchase","20/10/2016"
"Wolverhampton City Council","http://opendatacommunities.org/id/metropolitan-district-council/wolverhampton","GUM.CO/JKJT","41.18","Strategic ICTS (ICT Serv Budget)","5192","Books","20/10/2016"
"Wolverhampton City Council","http://opendatacommunities.org/id/metropolitan-district-council/wolverhampton","CENTRO HOUSE","635.46","Delivery & OCE Development","4112","Public Transport","20/10/2016"
"Wolverhampton City Council","http://opendatacommunities.org/id/metropolitan-district-council/wolverhampton","AMAZON UK RETAIL AMAZO","9.16","Central Baths","5999","Equipment - Purchase","20/10/2016"
"Wolverhampton City Council","http://opendatacommunities.org/id/metropolitan-district-council/wolverhampton","SSC RODBASTON","80.00","Northicote Farm","8220","Training Expenses","20/10/2016"
"Wolverhampton City Council","http://opendatacommunities.org/id/metropolitan-district-council/wolverhampton","Amazon UK Marketplace","8.84","Northicote Farm","5942","Equipment - Purchase","20/10/2016"
"Wolverhampton City Council","http://opendatacommunities.org/id/metropolitan-district-council/wolverhampton","RS COMPONENTS","30.93","Central Baths","5065","Equipment - R & M","20/10/2016"
"Wolverhampton City Council","http://opendatacommunities.org/id/metropolitan-district-council/wolverhampton","POST OFFICE COUNTER","110.00","EIP Locality 7","9402","Comms - Postage","20/10/2016"
"Wolverhampton City Council","http://opendatacommunities.org/id/metropolitan-district-council/wolverhampton","PO LOW HILL 1592","100.00","EIP Locality 7","6011","Grant Payments","20/10/2016"
"Wolverhampton City Council","http://opendatacommunities.org/id/metropolitan-district-council/wolverhampton","Amazon UK Marketplace","31.98","Electoral Registration","5942","Books","20/10/2016"
"Wolverhampton City Council","http://opendatacommunities.org/id/metropolitan-district-council/wolverhampton","WEST COAST TRAINS","7.50","Art Gallery","4112","Public Transport","20/10/2016"
"Wolverhampton City Council","http://opendatacommunities.org/id/metropolitan-district-council/wolverhampton","E05028300000000","200.00","Headstart Phase 3","6011","Equipment - Purchase","20/10/2016"
"Wolverhampton City Council","http://opendatacommunities.org/id/metropolitan-district-council/wolverhampton","MIDLAND DOMESTIC","129.00","EIP Locality 1","5722","Financial Assistance In Exceptional Circ","20/10/2016"
"Wolverhampton City Council","http://opendatacommunities.org/id/metropolitan-district-council/wolverhampton","Trainline.com Ltd","66.00","LAC Education Team (LACE)","4112","Public Transport","20/10/2016"
"Wolverhampton City Council","http://opendatacommunities.org/id/metropolitan-district-council/wolverhampton","Trainline.com Ltd","30.40","Strategic ICTS","4112","Public Transport","19/10/2016"
"Wolverhampton City Council","http://opendatacommunities.org/id/metropolitan-district-council/wolverhampton","GUM.CO/FLPZ","19.29","Strategic ICTS (ICT Serv Budget)","5192","Books","19/10/2016"
"Wolverhampton City Council","http://opendatacommunities.org/id/metropolitan-district-council/wolverhampton","CARD FACTORY","1.29","Creative Studies Delivery Area","5947","Equipment - Purchase","19/10/2016"
"Wolverhampton City Council","http://opendatacommunities.org/id/metropolitan-district-council/wolverhampton","WISEPOPSCOM","41.18","City Direct","7372","Computing - Purchase of Software","19/10/2016"
"Wolverhampton City Council","http://opendatacommunities.org/id/metropolitan-district-council/wolverhampton","Trainline.com Ltd","27.70","Housing Regeneration - Strategy & Dev","4112","Public Transport","19/10/2016"
"Wolverhampton City Council","http://opendatacommunities.org/id/metropolitan-district-council/wolverhampton","PO WILLENHALL RD 5497","10.00","EIP Locality 1","6011","Financial Assistance In Exceptional Circ","19/10/2016"
"Wolverhampton City Council","http://opendatacommunities.org/id/metropolitan-district-council/wolverhampton","TESCO STORES 5194","217.67","Towers Outdoor Education Centre","5411","Provisions (Not for resale)","19/10/2016"
"Wolverhampton City Council","http://opendatacommunities.org/id/metropolitan-district-council/wolverhampton","FUEL CARD SERVICES LTD","340.89","Towers Outdoor Education Centre","7399","Petrol","19/10/2016"
"Wolverhampton City Council","http://opendatacommunities.org/id/metropolitan-district-council/wolverhampton","O E METCALFE","295.93","Towers Outdoor Education Centre","5499","Catering","19/10/2016"
"Wolverhampton City Council","http://opendatacommunities.org/id/metropolitan-district-council/wolverhampton","SPAR SIOP TANDDERWEN","206.00","Towers Outdoor Education Centre","5411","Provisions (Not for resale)","19/10/2016"
"Wolverhampton City Council","http://opendatacommunities.org/id/metropolitan-district-council/wolverhampton","SPAR SIOP TANDDERWEN","243.16","Towers Outdoor Education Centre","5411","Provisions (Not for resale)","19/10/2016"
"Wolverhampton City Council","http://opendatacommunities.org/id/metropolitan-district-council/wolverhampton","SPAR SIOP TANDDERWEN","300.00","Towers Outdoor Education Centre","5411","Provisions (Not for resale)","19/10/2016"
"Wolverhampton City Council","http://opendatacommunities.org/id/metropolitan-district-council/wolverhampton","RICHARD WILLIAMS","64.58","Towers Outdoor Education Centre","5211","Materials","19/10/2016"
"Wolverhampton City Council","http://opendatacommunities.org/id/metropolitan-district-council/wolverhampton","Trainline.com Ltd","48.70","Education Catering - General Overheads","4112","Public Transport","19/10/2016"
"Wolverhampton City Council","http://opendatacommunities.org/id/metropolitan-district-council/wolverhampton","Trainline.com Ltd","22.39","Strategic ICTS (ICT Serv Budget)","4112","Public Transport","19/10/2016"
"Wolverhampton City Council","http://opendatacommunities.org/id/metropolitan-district-council/wolverhampton","Trainline.com Ltd","116.89","Strategic ICTS (ICT Serv Budget)","4112","Public Transport","19/10/2016"
"Wolverhampton City Council","http://opendatacommunities.org/id/metropolitan-district-council/wolverhampton","BRITANNIA","32.50","Head of Service - CINCP","7011","Services - Supplies & Services to users","19/10/2016"
"Wolverhampton City Council","http://opendatacommunities.org/id/metropolitan-district-council/wolverhampton","BARCLAYS BANK PLC","200.00","CIN/CP S17 SW Unit - Area 5","6011","Financial Assistance In Exceptional Circ","19/10/2016"
"Wolverhampton City Council","http://opendatacommunities.org/id/metropolitan-district-council/wolverhampton","BARCLAYS BANK PLC","200.00","CIN/CP S17 SW Unit - Area 5","6011","Financial Assistance In Exceptional Circ","19/10/2016"
"Wolverhampton City Council","http://opendatacommunities.org/id/metropolitan-district-council/wolverhampton","Trainline.com Ltd","375.05","Strategic Director Place","4112","Public Transport","19/10/2016"
"Wolverhampton City Council","http://opendatacommunities.org/id/metropolitan-district-council/wolverhampton","ARGOS RETAIL GROUP","19.95","Civic Halls Non Direct Management A/C","5310","Equipment - Purchase","19/10/2016"
"Wolverhampton City Council","http://opendatacommunities.org/id/metropolitan-district-council/wolverhampton","SEVERN TRENT WATER","17.35","CIN/CP S17 SW Unit - Area 4","4900","No Recourse to Public Funds","19/10/2016"
"Wolverhampton City Council","http://opendatacommunities.org/id/metropolitan-district-council/wolverhampton","BRITANNIA","70.83","CIN/CP S17 SW Unit - Area 4","7011","No Recourse to Public Funds","19/10/2016"
"Wolverhampton City Council","http://opendatacommunities.org/id/metropolitan-district-council/wolverhampton","EB  LIFE STORY WORKSHO","8.33","Workforce Development","7399","Training Expenses","19/10/2016"
"Wolverhampton City Council","http://opendatacommunities.org/id/metropolitan-district-council/wolverhampton","SAINSBURYS SACAT (2340","4.75","Cycling Schemes - Bikeability","5411","Catering","19/10/2016"
"Wolverhampton City Council","http://opendatacommunities.org/id/metropolitan-district-council/wolverhampton","NO 5 CHAMBERS LTD","25.00","Legal Services","8111","Training Expenses","19/10/2016"
"Wolverhampton City Council","http://opendatacommunities.org/id/metropolitan-district-council/wolverhampton","G & M HALE (SUNDRIES)","14.80","Discretionary Fund","5992","Materials","19/10/2016"
"Wolverhampton City Council","http://opendatacommunities.org/id/metropolitan-district-council/wolverhampton","G & M HALE LTD","83.75","Creative Studies Delivery Area","5992","Materials for resale","19/10/2016"
"Wolverhampton City Council","http://opendatacommunities.org/id/metropolitan-district-council/wolverhampton","G & M HALE LTD","137.00","Discretionary Fund","5992","Materials","19/10/2016"
"Wolverhampton City Council","http://opendatacommunities.org/id/metropolitan-district-council/wolverhampton","TRAINLINE","-209.00","Adoption and Residence Team & Allowances","4112","Public Transport","19/10/2016"
"Wolverhampton City Council","http://opendatacommunities.org/id/metropolitan-district-council/wolverhampton","EB  LIFE STORY WORKSHO","8.33","Adoption and Residence Team & Allowances","7399","Training Expenses","19/10/2016"
"Wolverhampton City Council","http://opendatacommunities.org/id/metropolitan-district-council/wolverhampton","Trainline.com Ltd","224.91","Adoption and Residence Team & Allowances","4112","Public Transport","19/10/2016"
"Wolverhampton City Council","http://opendatacommunities.org/id/metropolitan-district-council/wolverhampton","REGISTRARS OFFICE","10.00","Adoption and Residence Team & Allowances","8299","Services - Fees and Charges","19/10/2016"
"Wolverhampton City Council","http://opendatacommunities.org/id/metropolitan-district-council/wolverhampton","Amazon UK Marketplace","23.96","EIP Locality 7","5942","Materials","19/10/2016"
"Wolverhampton City Council","http://opendatacommunities.org/id/metropolitan-district-council/wolverhampton","Trainline.com Ltd","18.31","Revenues","4112","Public Transport","18/10/2016"
"Wolverhampton City Council","http://opendatacommunities.org/id/metropolitan-district-council/wolverhampton","THE YORK HOTEL","326.50","CIN/CP S17 SW Unit - Area 6","7011","Accommodation Costs","18/10/2016"
"Wolverhampton City Council","http://opendatacommunities.org/id/metropolitan-district-council/wolverhampton","NOTEMACHINE","250.00","CIN/CP S17 SW Unit - Area 6","6011","Provisions (Not for resale)","18/10/2016"
"Wolverhampton City Council","http://opendatacommunities.org/id/metropolitan-district-council/wolverhampton","Amazon UK Marketplace","17.71","Northicote Farm","5942","Equipment - Purchase","18/10/2016"
"Wolverhampton City Council","http://opendatacommunities.org/id/metropolitan-district-council/wolverhampton","CTRIP SH HUACHENG TRAV","569.08","International Trade","5962","Grant Payments","18/10/2016"
"Wolverhampton City Council","http://opendatacommunities.org/id/metropolitan-district-council/wolverhampton","CTRIP SH HUACHENG TRAV","284.54","International Trade","5962","Grant Payments","18/10/2016"
"Wolverhampton City Council","http://opendatacommunities.org/id/metropolitan-district-council/wolverhampton","WM MORRISONS","14.17","Upper Pendeford Farm Childrens Home","5411","Provisions (Not for resale)","18/10/2016"
"Wolverhampton City Council","http://opendatacommunities.org/id/metropolitan-district-council/wolverhampton","W M MORRISONS.COM","127.74","Creative Studies Delivery Area","5411","Provisions (Not for resale)","18/10/2016"
"Wolverhampton City Council","http://opendatacommunities.org/id/metropolitan-district-council/wolverhampton","CASH CONVERTERS","86.65","LAC Transitions Team","5931","Client Allowances","18/10/2016"
"Wolverhampton City Council","http://opendatacommunities.org/id/metropolitan-district-council/wolverhampton","WEST COAST TRAINS","188.33","City Direct","4112","Public Transport","18/10/2016"
"Wolverhampton City Council","http://opendatacommunities.org/id/metropolitan-district-council/wolverhampton","Amazon UK Marketplace","24.17","Blakenhall Commty & Healthy Living Ctr","5942","Provisions (Not for resale)","18/10/2016"
"Wolverhampton City Council","http://opendatacommunities.org/id/metropolitan-district-council/wolverhampton","Amazon UK Marketplace","5.39","Blakenhall Commty & Healthy Living Ctr","5942","Books","18/10/2016"
"Wolverhampton City Council","http://opendatacommunities.org/id/metropolitan-district-council/wolverhampton","WOLVERHAMPTON CITY COU","17.50","Blakenhall Commty & Healthy Living Ctr","9399","Services - Fees and Charges","18/10/2016"
"Wolverhampton City Council","http://opendatacommunities.org/id/metropolitan-district-council/wolverhampton","123 REG R/T","13.98","Technical Support","5968","Subscriptions","18/10/2016"
"Wolverhampton City Council","http://opendatacommunities.org/id/metropolitan-district-council/wolverhampton","MAPLIN WOLVERHAMPT WV2","29.15","Learning Technologies","4812","Comms - Mobile Telephones","18/10/2016"
"Wolverhampton City Council","http://opendatacommunities.org/id/metropolitan-district-council/wolverhampton","ASDA SUPERSTORE","57.56","EIP Locality 3","5411","Financial Assistance In Exceptional Circ","18/10/2016"
"Wolverhampton City Council","http://opendatacommunities.org/id/metropolitan-district-council/wolverhampton","Trainline.com Ltd","18.82","Early Years & Universal Service","4112","Public Transport","18/10/2016"
"Wolverhampton City Council","http://opendatacommunities.org/id/metropolitan-district-council/wolverhampton","SCREWFIX DIRECT","22.26","Public Conveniences","5211","Equipment - Purchase","18/10/2016"
"Wolverhampton City Council","http://opendatacommunities.org/id/metropolitan-district-council/wolverhampton","B & Q 1243","12.80","Public Conveniences","5211","Equipment - Purchase","18/10/2016"
"Wolverhampton City Council","http://opendatacommunities.org/id/metropolitan-district-council/wolverhampton","THE POST OFFICE","220.00","European Liaison","9402","Financial Assistance In Exceptional Circ","18/10/2016"
"Wolverhampton City Council","http://opendatacommunities.org/id/metropolitan-district-council/wolverhampton","THE PLOUGH HOTEL","203.00","Strategic ICTS (ICT Serv Budget)","7011","Accommodation Costs","18/10/2016"
"Wolverhampton City Council","http://opendatacommunities.org/id/metropolitan-district-council/wolverhampton","Amazon EU","15.99","Strategic ICTS (ICT Serv Budget)","5969","Equipment - Purchase","18/10/2016"
"Wolverhampton City Council","http://opendatacommunities.org/id/metropolitan-district-council/wolverhampton","Amazon UK Marketplace","79.90","Strategic ICTS (ICT Serv Budget)","5942","Computing - Purchase of Hardware","18/10/2016"
"Wolverhampton City Council","http://opendatacommunities.org/id/metropolitan-district-council/wolverhampton","Amazon UK Marketplace","239.70","Strategic ICTS (ICT Serv Budget)","5942","Computing - Purchase of Hardware","18/10/2016"
"Wolverhampton City Council","http://opendatacommunities.org/id/metropolitan-district-council/wolverhampton","HMCOURTS-SERVICE.G","120.00","LAC Transitions Team","9222","Client Allowances","18/10/2016"
"Wolverhampton City Council","http://opendatacommunities.org/id/metropolitan-district-council/wolverhampton","ASDA HOME SHOPPING","-0.18","Ernest Bold Court","5411","Provisions (Not for resale)","18/10/2016"
"Wolverhampton City Council","http://opendatacommunities.org/id/metropolitan-district-council/wolverhampton","ASDA HOME SHOPPING","36.29","Ernest Bold Court","5411","Provisions (Not for resale)","18/10/2016"
"Wolverhampton City Council","http://opendatacommunities.org/id/metropolitan-district-council/wolverhampton","Trainline.com Ltd","26.40","Corporate Policy and Equalities","4112","Public Transport","18/10/2016"
"Wolverhampton City Council","http://opendatacommunities.org/id/metropolitan-district-council/wolverhampton","NATWEST BANK","100.00","Democratic Support","6011","Public Transport","18/10/2016"
"Wolverhampton City Council","http://opendatacommunities.org/id/metropolitan-district-council/wolverhampton","Amazon UK Marketplace","97.48","Members Expenses","5942","Equipment - Purchase","18/10/2016"
"Wolverhampton City Council","http://opendatacommunities.org/id/metropolitan-district-council/wolverhampton","WCC PHONE PAYMENTS","54.00","CIN/CP S17 SW Unit - Area 5","9399","Services - Fees and Charges","18/10/2016"
"Wolverhampton City Council","http://opendatacommunities.org/id/metropolitan-district-council/wolverhampton","VIRGIN ATLANTIC","1462.26","City Marketing (Place)","3144","Public Transport","18/10/2016"
"Wolverhampton City Council","http://opendatacommunities.org/id/metropolitan-district-council/wolverhampton","NO 5 CHAMBERS LTD","50.00","Legal Services","8111","Training Expenses","18/10/2016"
"Wolverhampton City Council","http://opendatacommunities.org/id/metropolitan-district-council/wolverhampton","G & M HALE (SUNDRIES)","23.20","Creative Studies Delivery Area","5992","Materials","18/10/2016"
"Wolverhampton City Council","http://opendatacommunities.org/id/metropolitan-district-council/wolverhampton","G & M HALE LTD","13.50","Discretionary Fund","5992","Materials","18/10/2016"
"Wolverhampton City Council","http://opendatacommunities.org/id/metropolitan-district-council/wolverhampton","POST OFFICE COUNTER","7.25","Fostering Team & Allowances","9402","Comms - Postage","18/10/2016"
"Wolverhampton City Council","http://opendatacommunities.org/id/metropolitan-district-council/wolverhampton","WAITROSE 696","14.48","EIP Locality 4","5411","Provisions (Not for resale)","18/10/2016"
"Wolverhampton City Council","http://opendatacommunities.org/id/metropolitan-district-council/wolverhampton","Amazon UK Marketplace","49.75","Eduction Business Partnership","5942","Books","17/10/2016"
"Wolverhampton City Council","http://opendatacommunities.org/id/metropolitan-district-council/wolverhampton","BME TRAVEL","400.00","City Marketing (Place)","4121","Client Transport","17/10/2016"
"Wolverhampton City Council","http://opendatacommunities.org/id/metropolitan-district-council/wolverhampton","Q-SYSTEMS LIMITED","15.00","Catering Overhead Account","5999","Equipment - R & M","17/10/2016"
"Wolverhampton City Council","http://opendatacommunities.org/id/metropolitan-district-council/wolverhampton","THE FRAMERS","128.50","Bantock House Museum","5970","Materials","17/10/2016"
"Wolverhampton City Council","http://opendatacommunities.org/id/metropolitan-district-council/wolverhampton","GREETINGS HOUSE LTD","37.67","Civic Centre Catering","5999","Equipment - Purchase","17/10/2016"
"Wolverhampton City Council","http://opendatacommunities.org/id/metropolitan-district-council/wolverhampton","GREETINGS HOUSE LTD","166.67","Civic Centre Catering","5999","Equipment - Purchase","17/10/2016"
"Wolverhampton City Council","http://opendatacommunities.org/id/metropolitan-district-council/wolverhampton","ROYAL MAIL CHARGES","1.50","Revenues","9402","Comms - Postage","17/10/2016"
"Wolverhampton City Council","http://opendatacommunities.org/id/metropolitan-district-council/wolverhampton","WWW.WARWICKMUSIC.COM","23.90","Music Support Team","2741","Equipment - R & M","17/10/2016"
"Wolverhampton City Council","http://opendatacommunities.org/id/metropolitan-district-council/wolverhampton","THE YORK HOTEL","326.50","CIN/CP S17 SW Unit - Area 6","7011","Accommodation Costs","17/10/2016"
"Wolverhampton City Council","http://opendatacommunities.org/id/metropolitan-district-council/wolverhampton","LOVE2SHOP.CO.UK","484.25","European Liaison","8641","Clothing / Uniforms","17/10/2016"
"Wolverhampton City Council","http://opendatacommunities.org/id/metropolitan-district-council/wolverhampton","NOVOTEL HOTELS","181.58","Strategic ICTS","3642","Conference Expenses","17/10/2016"
"Wolverhampton City Council","http://opendatacommunities.org/id/metropolitan-district-council/wolverhampton","FACEBK 9GT7K9NA92","6.81","Communications & Marketing - General","7311","Marketing \ Non-staff advertising","17/10/2016"
"Wolverhampton City Council","http://opendatacommunities.org/id/metropolitan-district-council/wolverhampton","FACEBK 8GT7K9NA92","593.50","Communications & Marketing - General","7311","Marketing \ Non-staff advertising","17/10/2016"
"Wolverhampton City Council","http://opendatacommunities.org/id/metropolitan-district-council/wolverhampton","BRITANNIA","125.00","Emergency Duty Team","7011","Services - Supplies & Services to users","17/10/2016"
"Wolverhampton City Council","http://opendatacommunities.org/id/metropolitan-district-council/wolverhampton","BRITANNIA","125.00","Emergency Duty Team","7011","Services - Supplies & Services to users","17/10/2016"
"Wolverhampton City Council","http://opendatacommunities.org/id/metropolitan-district-council/wolverhampton","E01510300000000","33.33","Emergency Duty Team","6011","Financial Assistance In Exceptional Circ","17/10/2016"
"Wolverhampton City Council","http://opendatacommunities.org/id/metropolitan-district-council/wolverhampton","WILKO RETAIL LIMIT","6.95","Creative Studies Delivery Area","5722","Equipment - Purchase","17/10/2016"
"Wolverhampton City Council","http://opendatacommunities.org/id/metropolitan-district-council/wolverhampton","LOYD 37 CHURCH STREET","200.00","EIP Locality 8","6011","Equipment - Purchase","17/10/2016"
"Wolverhampton City Council","http://opendatacommunities.org/id/metropolitan-district-council/wolverhampton","B&M RETAIL","13.94","Headstart","5310","Equipment - Purchase","17/10/2016"
"Wolverhampton City Council","http://opendatacommunities.org/id/metropolitan-district-council/wolverhampton","Amazon UK Marketplace","-21.97","Headstart Phase 3","5999","Equipment - Purchase","17/10/2016"
"Wolverhampton City Council","http://opendatacommunities.org/id/metropolitan-district-council/wolverhampton","123 REG R/T","13.98","City Direct","5968","Subscriptions","17/10/2016"
"Wolverhampton City Council","http://opendatacommunities.org/id/metropolitan-district-council/wolverhampton","WICKES","34.97","Central Baths","5211","Materials","17/10/2016"
"Wolverhampton City Council","http://opendatacommunities.org/id/metropolitan-district-council/wolverhampton","TVLICENSING.CO.UK","145.50","LAC Transitions Team","7392","Client Allowances","17/10/2016"
"Wolverhampton City Council","http://opendatacommunities.org/id/metropolitan-district-council/wolverhampton","WIX.COM","93.13","Technical Support","5817","Computing - Purchase of Software","17/10/2016"
"Wolverhampton City Council","http://opendatacommunities.org/id/metropolitan-district-council/wolverhampton","Wix.com","93.13","Technical Support","5817","Computing - Purchase of Software","17/10/2016"
"Wolverhampton City Council","http://opendatacommunities.org/id/metropolitan-district-council/wolverhampton","Amazon UK Marketplace","2.81","Global Budgets","5942","Books","17/10/2016"
"Wolverhampton City Council","http://opendatacommunities.org/id/metropolitan-district-council/wolverhampton","ASDA SUPERSTORE","148.68","EIP Locality 3","5411","Financial Assistance In Exceptional Circ","17/10/2016"
"Wolverhampton City Council","http://opendatacommunities.org/id/metropolitan-district-council/wolverhampton","INTERFLORA BRITISH UNI","42.00","Adoption and Residence Team & Allowances","5992","Financial Assistance In Exceptional Circ","17/10/2016"
"Wolverhampton City Council","http://opendatacommunities.org/id/metropolitan-district-council/wolverhampton","ASDA HOME SHOPPING","-1.85","Ernest Bold Court","5411","Provisions (Not for resale)","17/10/2016"
"Wolverhampton City Council","http://opendatacommunities.org/id/metropolitan-district-council/wolverhampton","ASDA HOME SHOPPING","98.41","Ernest Bold Court","5411","Provisions (Not for resale)","17/10/2016"
"Wolverhampton City Council","http://opendatacommunities.org/id/metropolitan-district-council/wolverhampton","Amazon UK Marketplace","-60.00","Inclusion Support","5999","Equipment - Purchase","17/10/2016"
"Wolverhampton City Council","http://opendatacommunities.org/id/metropolitan-district-council/wolverhampton","GO CARZ","15.74","CIN/CP S17 SW Unit - Area 5","4121","Client Transport","17/10/2016"
"Wolverhampton City Council","http://opendatacommunities.org/id/metropolitan-district-council/wolverhampton","GO CARZ","15.74","CIN/CP S17 SW Unit - Area 5","4121","Client Transport","17/10/2016"
"Wolverhampton City Council","http://opendatacommunities.org/id/metropolitan-district-council/wolverhampton","THE CHESHIRE HOTEL","120.44","Eduction Business Partnership","7011","Services - Supplies & Services to users","17/10/2016"
"Wolverhampton City Council","http://opendatacommunities.org/id/metropolitan-district-council/wolverhampton","Trainline.com Ltd","112.71","Strategic ICTS","4112","Public Transport","14/10/2016"
"Wolverhampton City Council","http://opendatacommunities.org/id/metropolitan-district-council/wolverhampton","Trainline.com Ltd","181.40","Corporate Procurement Unit","4112","Public Transport","14/10/2016"
"Wolverhampton City Council","http://opendatacommunities.org/id/metropolitan-district-council/wolverhampton","HOTELS.COM133196395376","44.95","Emergency Duty Team","4722","Financial Assistance In Exceptional Circ","14/10/2016"
"Wolverhampton City Council","http://opendatacommunities.org/id/metropolitan-district-council/wolverhampton","LOYD 37 CHURCH STREET","200.00","EIP Locality 8","6011","Equipment - Purchase","14/10/2016"
"Wolverhampton City Council","http://opendatacommunities.org/id/metropolitan-district-council/wolverhampton","WOLVERHAMPTON CC","3.00","Headstart","7523","Parking Fees","14/10/2016"
"Wolverhampton City Council","http://opendatacommunities.org/id/metropolitan-district-council/wolverhampton","QHOTELS WEBSITE BOOKIN","117.90","Headstart Phase 3","7011","Training Expenses","14/10/2016"
"Wolverhampton City Council","http://opendatacommunities.org/id/metropolitan-district-council/wolverhampton","CUMMINGS BROTHERS LOCK","4.17","Public Conveniences","7399","R&M - Departmental planned (external)","14/10/2016"
"Wolverhampton City Council","http://opendatacommunities.org/id/metropolitan-district-council/wolverhampton","CUMMINGS BROTHERS LOCK","41.67","Caretakers Community Centre","7399","R&M - Departmental planned (external)","14/10/2016"
"Wolverhampton City Council","http://opendatacommunities.org/id/metropolitan-district-council/wolverhampton","CUMMINGS BROTHERS LOCK","35.00","Culwell Street Depot","7399","R&M - Departmental planned (external)","14/10/2016"
"Wolverhampton City Council","http://opendatacommunities.org/id/metropolitan-district-council/wolverhampton","CUMMINGS BROTHERS LOCK","8.33","Culwell Street Depot","7399","R&M - Departmental planned (external)","14/10/2016"
"Wolverhampton City Council","http://opendatacommunities.org/id/metropolitan-district-council/wolverhampton","AMAZON UK RETAIL AMAZO","21.20","Towers Outdoor Education Centre","5999","Equipment - Purchase","14/10/2016"
"Wolverhampton City Council","http://opendatacommunities.org/id/metropolitan-district-council/wolverhampton","SPG MEDIA GROUP PLC","55.00","Education Catering - General Overheads","5964","Training Expenses","14/10/2016"
"Wolverhampton City Council","http://opendatacommunities.org/id/metropolitan-district-council/wolverhampton","Wix.com","93.13","Technical Support","5817","Computing - Purchase of Software","14/10/2016"
"Wolverhampton City Council","http://opendatacommunities.org/id/metropolitan-district-council/wolverhampton","Amazon EU","11.39","Global Budgets","5969","Books","14/10/2016"
"Wolverhampton City Council","http://opendatacommunities.org/id/metropolitan-district-council/wolverhampton","WWW.BAKERROSS.CO.UK","85.10","Education And Access","5970","Materials","14/10/2016"
"Wolverhampton City Council","http://opendatacommunities.org/id/metropolitan-district-council/wolverhampton","INFOCASH","60.00","Vulnerable Young Persons Team","6011","Financial Assistance In Exceptional Circ","14/10/2016"
"Wolverhampton City Council","http://opendatacommunities.org/id/metropolitan-district-council/wolverhampton","Amazon UK Marketplace","73.80","Members Expenses","5942","Equipment - Purchase","14/10/2016"
"Wolverhampton City Council","http://opendatacommunities.org/id/metropolitan-district-council/wolverhampton","Amazon UK Marketplace","33.80","Members Expenses","5942","Equipment - Purchase","14/10/2016"
"Wolverhampton City Council","http://opendatacommunities.org/id/metropolitan-district-council/wolverhampton","Amazon UK Marketplace","82.92","Eduction Business Partnership","5942","Books","14/10/2016"
"Wolverhampton City Council","http://opendatacommunities.org/id/metropolitan-district-council/wolverhampton","Trainline.com Ltd","64.36","Strategic Director Place","4112","Public Transport","14/10/2016"
"Wolverhampton City Council","http://opendatacommunities.org/id/metropolitan-district-council/wolverhampton","Trainline.com Ltd","190.40","Adoption and Residence Team & Allowances","4112","Public Transport","14/10/2016"
"Wolverhampton City Council","http://opendatacommunities.org/id/metropolitan-district-council/wolverhampton","E09009100000000","30.00","EIP Locality 3","6011","Financial Assistance In Exceptional Circ","14/10/2016"
"Wolverhampton City Council","http://opendatacommunities.org/id/metropolitan-district-council/wolverhampton","Amazon UK Marketplace","178.53","Ground Maintenance West","5942","Equipment - Purchase","14/10/2016"
"Wolverhampton City Council","http://opendatacommunities.org/id/metropolitan-district-council/wolverhampton","WEST COAST TRAINS","10.00","Cemeteries","7523","Car Allowances","14/10/2016"
"Wolverhampton City Council","http://opendatacommunities.org/id/metropolitan-district-council/wolverhampton","WEST COAST TRAINS","20.67","Cemeteries","4112","Public Transport","14/10/2016"
"Wolverhampton City Council","http://opendatacommunities.org/id/metropolitan-district-council/wolverhampton","WEST PARK NEWS","20.75","EIP Locality 5","5411","Provisions (Not for resale)","14/10/2016"
"Wolverhampton City Council","http://opendatacommunities.org/id/metropolitan-district-council/wolverhampton","PREMIER INN","73.33","Planning","3811","Accommodation Costs","13/10/2016"
"Wolverhampton City Council","http://opendatacommunities.org/id/metropolitan-district-council/wolverhampton","B&M RETAIL","56.06","LAC Transitions Team","5310","Client Allowances","13/10/2016"
"Wolverhampton City Council","http://opendatacommunities.org/id/metropolitan-district-council/wolverhampton","VIRGIN MEDIA PYMTS","108.00","Civic Halls Non Direct Management A/C","4814","Comms - Telephone Call charges","13/10/2016"
"Wolverhampton City Council","http://opendatacommunities.org/id/metropolitan-district-council/wolverhampton","VIRGIN MEDIA PYMTS","72.00","Civic Halls Non Direct Management A/C","4814","Comms - Telephone Call charges","13/10/2016"
"Wolverhampton City Council","http://opendatacommunities.org/id/metropolitan-district-council/wolverhampton","PURE360","224.00","Civic Halls Non Direct Management A/C","7372","Marketing \ Non-staff advertising","13/10/2016"
"Wolverhampton City Council","http://opendatacommunities.org/id/metropolitan-district-council/wolverhampton","ESENDEX LIMITED","25.00","Civic Halls Non Direct Management A/C","4814","Comms - Telephone Call charges","13/10/2016"
"Wolverhampton City Council","http://opendatacommunities.org/id/metropolitan-district-council/wolverhampton","BRITANNIA","159.17","CIN/CP S17 SW Unit - Area 4","7011","No Recourse to Public Funds","13/10/2016"
"Wolverhampton City Council","http://opendatacommunities.org/id/metropolitan-district-council/wolverhampton","WESTMINSTER FORUM","210.00","Member Training","7392","Training Expenses","13/10/2016"
"Wolverhampton City Council","http://opendatacommunities.org/id/metropolitan-district-council/wolverhampton","SAINSBURYS (2340)","12.66","Mayoral Expenses","5411","Hospitality","13/10/2016"
"Wolverhampton City Council","http://opendatacommunities.org/id/metropolitan-district-council/wolverhampton","JURYS INN GATESHEA","141.67","School Improvement","7011","Services - Supplies & Services to users","13/10/2016"
"Wolverhampton City Council","http://opendatacommunities.org/id/metropolitan-district-council/wolverhampton","ARGOS LTD","30.04","Cemeteries","5310","Equipment - Purchase","13/10/2016"
"Wolverhampton City Council","http://opendatacommunities.org/id/metropolitan-district-council/wolverhampton","Amazon EU","50.92","Ground Maintenance West","5969","Equipment - Purchase","13/10/2016"
"Wolverhampton City Council","http://opendatacommunities.org/id/metropolitan-district-council/wolverhampton","Amazon UK Marketplace","33.23","Street Cleansing Overheads","5942","Equipment - Purchase","13/10/2016"
"Wolverhampton City Council","http://opendatacommunities.org/id/metropolitan-district-council/wolverhampton","DVLA DRIVER ONLINE","20.00","LAC Transitions Team","9399","Client Allowances","13/10/2016"
"Wolverhampton City Council","http://opendatacommunities.org/id/metropolitan-district-council/wolverhampton","TESCO STORES 5194","-3.81","Towers Outdoor Education Centre","5411","Provisions (Not for resale)","13/10/2016"
"Wolverhampton City Council","http://opendatacommunities.org/id/metropolitan-district-council/wolverhampton","Amazon UK Marketplace","4.35","Towers Outdoor Education Centre","5942","Equipment - Purchase","13/10/2016"
"Wolverhampton City Council","http://opendatacommunities.org/id/metropolitan-district-council/wolverhampton","CURRYS S/S","58.32","Technical Support","5732","Equipment - Purchase","13/10/2016"
"Wolverhampton City Council","http://opendatacommunities.org/id/metropolitan-district-council/wolverhampton","AMAZON UK RETAIL AMAZO","6.84","Global Budgets","5999","Books","13/10/2016"
"Wolverhampton City Council","http://opendatacommunities.org/id/metropolitan-district-council/wolverhampton","Amazon UK Marketplace","2.81","Global Budgets","5942","Books","13/10/2016"
"Wolverhampton City Council","http://opendatacommunities.org/id/metropolitan-district-council/wolverhampton","WICKES","6.65","Specialist Support Service - North","5211","Equipment - R & M","13/10/2016"
"Wolverhampton City Council","http://opendatacommunities.org/id/metropolitan-district-council/wolverhampton","B & Q 1243","9.72","Specialist Support Service - North","5211","Equipment - R & M","13/10/2016"
"Wolverhampton City Council","http://opendatacommunities.org/id/metropolitan-district-council/wolverhampton","GRO HM PASSPORT OFFICE","9.25","LAC Team","9399","Financial Assistance In Exceptional Circ","13/10/2016"
"Wolverhampton City Council","http://opendatacommunities.org/id/metropolitan-district-council/wolverhampton","NOTEMACHINE","200.00","CIN/CP S17 SW Unit - Area 6","6011","Financial Assistance In Exceptional Circ","13/10/2016"
"Wolverhampton City Council","http://opendatacommunities.org/id/metropolitan-district-council/wolverhampton","FINDEL ED LTD","262.06","Eduction Business Partnership","5969","Equipment - Purchase","13/10/2016"
"Wolverhampton City Council","http://opendatacommunities.org/id/metropolitan-district-council/wolverhampton","Trainline.com Ltd","93.33","Eduction Business Partnership","4112","Public Transport","13/10/2016"
"Wolverhampton City Council","http://opendatacommunities.org/id/metropolitan-district-council/wolverhampton","BT PAY BY PHONE","221.11","Art Gallery","4814","Comms - Telephone Call charges","13/10/2016"
"Wolverhampton City Council","http://opendatacommunities.org/id/metropolitan-district-council/wolverhampton","THE HARVARD INN","554.17","Adoption and Residence Team & Allowances","5813","Accommodation Costs","13/10/2016"
"Wolverhampton City Council","http://opendatacommunities.org/id/metropolitan-district-council/wolverhampton","Trainline.com Ltd","22.49","Document Centre - General","4112","Public Transport","13/10/2016"
"Wolverhampton City Council","http://opendatacommunities.org/id/metropolitan-district-council/wolverhampton","ASDA HOME SHOPPING","120.60","Upper Pendeford Farm Childrens Home","5411","Provisions (Not for resale)","13/10/2016"
"Wolverhampton City Council","http://opendatacommunities.org/id/metropolitan-district-council/wolverhampton","WILKO RETAIL LIMIT","40.00","LAC Transitions Team","5722","Client Allowances","13/10/2016"
"Wolverhampton City Council","http://opendatacommunities.org/id/metropolitan-district-council/wolverhampton","BRITISH HEART","222.92","LAC Transitions Team","8398","Client Allowances","13/10/2016"
"Wolverhampton City Council","http://opendatacommunities.org/id/metropolitan-district-council/wolverhampton","CASH EXCHANGE","250.00","LAC Transitions Team","5722","Client Allowances","13/10/2016"
"Wolverhampton City Council","http://opendatacommunities.org/id/metropolitan-district-council/wolverhampton","POSTCRIPT SANDPIPE","9.99","Archives","5942","Books","13/10/2016"
"Wolverhampton City Council","http://opendatacommunities.org/id/metropolitan-district-council/wolverhampton","SCREWFIX DIRECT LT","16.63","Cleaning of Buildings - General","5211","Materials","13/10/2016"
"Wolverhampton City Council","http://opendatacommunities.org/id/metropolitan-district-council/wolverhampton","WEST MID TRAVEL","29.16","Discretionary Fund","4131","Comms - Postage","12/10/2016"
"Wolverhampton City Council","http://opendatacommunities.org/id/metropolitan-district-council/wolverhampton","THE COAL AUTHORITY","32.50","Property Services - Commissioning","9399","Services - Fees and Charges","12/10/2016"
"Wolverhampton City Council","http://opendatacommunities.org/id/metropolitan-district-council/wolverhampton","Udemy","50.00","Central Training","7372","Training Expenses","12/10/2016"
"Wolverhampton City Council","http://opendatacommunities.org/id/metropolitan-district-council/wolverhampton","RIBA ENTERPRISES LTD","79.17","Legal Services","5942","Books","12/10/2016"
"Wolverhampton City Council","http://opendatacommunities.org/id/metropolitan-district-council/wolverhampton","Trainline.com Ltd","57.73","Legal Services","4112","Public Transport","12/10/2016"
"Wolverhampton City Council","http://opendatacommunities.org/id/metropolitan-district-council/wolverhampton","G & M HALE (SUNDRIES)","5.40","Discretionary Fund","5992","Materials","12/10/2016"
"Wolverhampton City Council","http://opendatacommunities.org/id/metropolitan-district-council/wolverhampton","G & M HALE LTD","60.85","Creative Studies Delivery Area","5992","Materials for resale","12/10/2016"
"Wolverhampton City Council","http://opendatacommunities.org/id/metropolitan-district-council/wolverhampton","G & M HALE LTD","134.70","Discretionary Fund","5992","Materials","12/10/2016"
"Wolverhampton City Council","http://opendatacommunities.org/id/metropolitan-district-council/wolverhampton","Trainline.com Ltd","219.00","Adoption and Residence Team & Allowances","4112","Public Transport","12/10/2016"
"Wolverhampton City Council","http://opendatacommunities.org/id/metropolitan-district-council/wolverhampton","Amazon UK Marketplace","29.95","Patching","5942","Equipment - Purchase","12/10/2016"
"Wolverhampton City Council","http://opendatacommunities.org/id/metropolitan-district-council/wolverhampton","Amazon UK Marketplace","42.00","Patching","5942","Equipment - Purchase","12/10/2016"
"Wolverhampton City Council","http://opendatacommunities.org/id/metropolitan-district-council/wolverhampton","TFM FARM & COUNTRY SUP","178.24","Northicote Farm","5399","Equipment - Purchase","12/10/2016"
"Wolverhampton City Council","http://opendatacommunities.org/id/metropolitan-district-council/wolverhampton","NETWORK WEST MIDLANDS","210.00","CIN/CP S17 SW Unit - Area 3B","9399","Services - Fees and Charges","12/10/2016"
"Wolverhampton City Council","http://opendatacommunities.org/id/metropolitan-district-council/wolverhampton","POST OFFICE COUNTER","7.68","Emergency Duty Team","9402","Comms - Postage","12/10/2016"
"Wolverhampton City Council","http://opendatacommunities.org/id/metropolitan-district-council/wolverhampton","Amazon UK Marketplace","45.97","Electoral Registration","5942","Books","12/10/2016"
"Wolverhampton City Council","http://opendatacommunities.org/id/metropolitan-district-council/wolverhampton","Trainline.com Ltd","34.12","Art Gallery","4112","Public Transport","12/10/2016"
"Wolverhampton City Council","http://opendatacommunities.org/id/metropolitan-district-council/wolverhampton","HUGHES","408.33","LAC Transitions Team","5732","Client Allowances","12/10/2016"
"Wolverhampton City Council","http://opendatacommunities.org/id/metropolitan-district-council/wolverhampton","WEST PARK NEWS","20.75","Physical & Sensory Disabilities Mgmt","5411","Electricity","12/10/2016"
"Wolverhampton City Council","http://opendatacommunities.org/id/metropolitan-district-council/wolverhampton","SAINSBURYS (2340)","46.08","Childrens with Disabilities Team","5411","Comms - Postage","12/10/2016"
"Wolverhampton City Council","http://opendatacommunities.org/id/metropolitan-district-council/wolverhampton","Amazon UK Marketplace","19.61","Street Cleansing Overheads","5942","Equipment - Purchase","12/10/2016"
"Wolverhampton City Council","http://opendatacommunities.org/id/metropolitan-district-council/wolverhampton","Amazon UK Marketplace","7.89","Street Cleansing Overheads","5942","Equipment - Purchase","12/10/2016"
"Wolverhampton City Council","http://opendatacommunities.org/id/metropolitan-district-council/wolverhampton","Amazon UK Marketplace","5.79","Street Cleansing Overheads","5942","Equipment - Purchase","12/10/2016"
"Wolverhampton City Council","http://opendatacommunities.org/id/metropolitan-district-council/wolverhampton","SPECSAVERS","22.00","LAC Transitions Team","8043","Client Allowances","12/10/2016"
"Wolverhampton City Council","http://opendatacommunities.org/id/metropolitan-district-council/wolverhampton","Trainline.com Ltd","224.91","Adoption and Residence Team & Allowances","4112","Public Transport","12/10/2016"
"Wolverhampton City Council","http://opendatacommunities.org/id/metropolitan-district-council/wolverhampton","Amazon UK Marketplace","21.98","Strategic ICTS (ICT Serv Budget)","5942","Computing - Consumables","12/10/2016"
"Wolverhampton City Council","http://opendatacommunities.org/id/metropolitan-district-council/wolverhampton","Amazon Svcs Europe,SAR","27.14","Strategic ICTS (ICT Serv Budget)","5942","Books","12/10/2016"
"Wolverhampton City Council","http://opendatacommunities.org/id/metropolitan-district-council/wolverhampton","ARGOS RETAIL GROUP","257.38","CIN/CP S17 SW Unit - Area 3B","5310","Equipment - Purchase","12/10/2016"
"Wolverhampton City Council","http://opendatacommunities.org/id/metropolitan-district-council/wolverhampton","NOTEMACHINE","250.00","CIN/CP S17 SW Unit - Area 6","6011","Financial Assistance In Exceptional Circ","12/10/2016"
"Wolverhampton City Council","http://opendatacommunities.org/id/metropolitan-district-council/wolverhampton","HUGHES","408.33","LAC Transitions Team","5732","Client Allowances","12/10/2016"
"Wolverhampton City Council","http://opendatacommunities.org/id/metropolitan-district-council/wolverhampton","WOLVERHAMPTON CC","2.50","Headstart","7523","Parking Fees","12/10/2016"
"Wolverhampton City Council","http://opendatacommunities.org/id/metropolitan-district-council/wolverhampton","WEST COAST TRAINS","12.50","City Direct","4112","Public Transport","12/10/2016"
"Wolverhampton City Council","http://opendatacommunities.org/id/metropolitan-district-council/wolverhampton","VWO.com","49.44","City Direct","7399","Equipment - Purchase","12/10/2016"
"Wolverhampton City Council","http://opendatacommunities.org/id/metropolitan-district-council/wolverhampton","GO OUTDOORS","34.73","Central Baths","5691","Equipment - Purchase","12/10/2016"
"Wolverhampton City Council","http://opendatacommunities.org/id/metropolitan-district-council/wolverhampton","SCREWFIX DIRECT LT","19.97","Central Baths","5211","Materials","12/10/2016"
"Wolverhampton City Council","http://opendatacommunities.org/id/metropolitan-district-council/wolverhampton","Trainline.com Ltd","52.70","Parent / Partnership Service","4112","Public Transport","12/10/2016"
"Wolverhampton City Council","http://opendatacommunities.org/id/metropolitan-district-council/wolverhampton","SCREWFIX DIRECT LT","16.32","Culwell Street Depot","5211","R&M - Departmental planned (external)","12/10/2016"
"Wolverhampton City Council","http://opendatacommunities.org/id/metropolitan-district-council/wolverhampton","Trainline.com Ltd","60.00","Planning","4112","Public Transport","12/10/2016"
"Wolverhampton City Council","http://opendatacommunities.org/id/metropolitan-district-council/wolverhampton","NOTEMACHINE","20.00","Outreach Support","6011","Services - Bank Charges","12/10/2016"
"Wolverhampton City Council","http://opendatacommunities.org/id/metropolitan-district-council/wolverhampton","GO CARZ","13.95","Referral Team CIN - S17","4121","Client Transport","12/10/2016"
"Wolverhampton City Council","http://opendatacommunities.org/id/metropolitan-district-council/wolverhampton","GO CARZ","14.27","Referral Team CIN - S17","4121","Client Transport","12/10/2016"
"Wolverhampton City Council","http://opendatacommunities.org/id/metropolitan-district-council/wolverhampton","TESCO STORES 5194","163.40","Towers Outdoor Education Centre","5411","Provisions (Not for resale)","12/10/2016"
"Wolverhampton City Council","http://opendatacommunities.org/id/metropolitan-district-council/wolverhampton","Amazon UK Marketplace","5.19","Global Budgets","5942","Books","12/10/2016"
"Wolverhampton City Council","http://opendatacommunities.org/id/metropolitan-district-council/wolverhampton","CARMARTHEN CAMERA CENT","20.82","Archives","5946","Equipment - Purchase","12/10/2016"
"Wolverhampton City Council","http://opendatacommunities.org/id/metropolitan-district-council/wolverhampton","MYMEMORYLTD","19.98","Archives","5732","Equipment - Purchase","12/10/2016"
"Wolverhampton City Council","http://opendatacommunities.org/id/metropolitan-district-council/wolverhampton","DIAMOND PUBLISHING LTD","150.00","Civic Halls Non Direct Management A/C","2741","Marketing \ Non-staff advertising","12/10/2016"
"Wolverhampton City Council","http://opendatacommunities.org/id/metropolitan-district-council/wolverhampton","BRITANNIA","106.67","CIN/CP S17 SW Unit - Area 4","7011","No Recourse to Public Funds","12/10/2016"
"Wolverhampton City Council","http://opendatacommunities.org/id/metropolitan-district-council/wolverhampton","BLAS AR FWYD CYF","162.71","Towers Outdoor Education Centre","5812","Educ Trips, Holidays, Outings, Activity","12/10/2016"
"Wolverhampton City Council","http://opendatacommunities.org/id/metropolitan-district-council/wolverhampton","WWW.STAPLES.CO.UK","68.53","Towers Outdoor Education Centre","5943","Stationery","12/10/2016"
"Wolverhampton City Council","http://opendatacommunities.org/id/metropolitan-district-council/wolverhampton","Amazon UK Marketplace","7.08","Towers Outdoor Education Centre","5942","Books","12/10/2016"
"Wolverhampton City Council","http://opendatacommunities.org/id/metropolitan-district-council/wolverhampton","Amazon UK Marketplace","4.22","Towers Outdoor Education Centre","5942","Books","12/10/2016"
"Wolverhampton City Council","http://opendatacommunities.org/id/metropolitan-district-council/wolverhampton","Amazon UK Marketplace","4.05","Towers Outdoor Education Centre","5942","Books","12/10/2016"
"Wolverhampton City Council","http://opendatacommunities.org/id/metropolitan-district-council/wolverhampton","Amazon UK Marketplace","4.97","Towers Outdoor Education Centre","5942","Books","12/10/2016"
"Wolverhampton City Council","http://opendatacommunities.org/id/metropolitan-district-council/wolverhampton","FSPRG.COM INFFUSE.COM","5.05","Technical Support","5734","Computing - Purchase of Software","12/10/2016"
"Wolverhampton City Council","http://opendatacommunities.org/id/metropolitan-district-council/wolverhampton","SCREWFIX DIRECT","88.89","Public Conveniences","5211","Equipment - Purchase","11/10/2016"
"Wolverhampton City Council","http://opendatacommunities.org/id/metropolitan-district-council/wolverhampton","Amazon UK Marketplace","358.92","Strategic ICTS (ICT Serv Budget)","5942","Comms - Mobile Telephones","11/10/2016"
"Wolverhampton City Council","http://opendatacommunities.org/id/metropolitan-district-council/wolverhampton","Amazon UK Marketplace","110.02","Strategic ICTS (ICT Serv Budget)","5942","Comms - Mobile Telephones","11/10/2016"
"Wolverhampton City Council","http://opendatacommunities.org/id/metropolitan-district-council/wolverhampton","E01510300000000","80.00","Managing Director","6011","Financial Assistance In Exceptional Circ","11/10/2016"
"Wolverhampton City Council","http://opendatacommunities.org/id/metropolitan-district-council/wolverhampton","Santander","120.00","Managing Director","6011","Financial Assistance In Exceptional Circ","11/10/2016"
"Wolverhampton City Council","http://opendatacommunities.org/id/metropolitan-district-council/wolverhampton","WWW.ALLPURPOSELTD.CO.U","127.09","Central Baths","2842","Cleaning Supplies and Materials","11/10/2016"
"Wolverhampton City Council","http://opendatacommunities.org/id/metropolitan-district-council/wolverhampton","POST OFFICE COUNTER","496.00","LAC Team","9402","Comms - Postage","11/10/2016"
"Wolverhampton City Council","http://opendatacommunities.org/id/metropolitan-district-council/wolverhampton","W M MORRISONS.COM","89.48","Creative Studies Delivery Area","5411","Provisions (Not for resale)","11/10/2016"
"Wolverhampton City Council","http://opendatacommunities.org/id/metropolitan-district-council/wolverhampton","ASDA SUPERSTORE","17.50","LAC Transitions Team","5411","Client Allowances","11/10/2016"
"Wolverhampton City Council","http://opendatacommunities.org/id/metropolitan-district-council/wolverhampton","Amazon UK Marketplace","33.29","Headstart","5942","Equipment - Purchase","11/10/2016"
"Wolverhampton City Council","http://opendatacommunities.org/id/metropolitan-district-council/wolverhampton","TRAINLINE","-95.90","MAST - Central Team","4112","Public Transport","11/10/2016"
"Wolverhampton City Council","http://opendatacommunities.org/id/metropolitan-district-council/wolverhampton","Trainline.com Ltd","99.35","MAST - Central Team","4112","Public Transport","11/10/2016"
"Wolverhampton City Council","http://opendatacommunities.org/id/metropolitan-district-council/wolverhampton","Trainline.com Ltd","99.35","MAST - Central Team","4112","Public Transport","11/10/2016"
"Wolverhampton City Council","http://opendatacommunities.org/id/metropolitan-district-council/wolverhampton","CARVER/WOLVERHAMPTON/L","15.32","Wholesale Market Facilities Management","5211","Cleaning Supplies and Materials","11/10/2016"
"Wolverhampton City Council","http://opendatacommunities.org/id/metropolitan-district-council/wolverhampton","ARGOS RETAIL GROUP","64.99","EIP Locality 1","5310","Financial Assistance In Exceptional Circ","11/10/2016"
"Wolverhampton City Council","http://opendatacommunities.org/id/metropolitan-district-council/wolverhampton","CT WOLVERHAMPTON","205.00","EIP Locality 1","8398","Financial Assistance In Exceptional Circ","11/10/2016"
"Wolverhampton City Council","http://opendatacommunities.org/id/metropolitan-district-council/wolverhampton","MEDIA & COMMUNICATIONS","126.00","Referral Team CIN - S17","4812","Comms - Mobile Telephones","11/10/2016"
"Wolverhampton City Council","http://opendatacommunities.org/id/metropolitan-district-council/wolverhampton","SAINSBURYS","50.00","Duke Street Bungalows","6011","Financial Assistance In Exceptional Circ","11/10/2016"
"Wolverhampton City Council","http://opendatacommunities.org/id/metropolitan-district-council/wolverhampton","HSBC INVOICE FINAN","105.35","Towers Outdoor Education Centre","6012","Laundry Expenses","11/10/2016"
"Wolverhampton City Council","http://opendatacommunities.org/id/metropolitan-district-council/wolverhampton","Amazon UK Marketplace","183.74","Towers Outdoor Education Centre","5942","Books","11/10/2016"
"Wolverhampton City Council","http://opendatacommunities.org/id/metropolitan-district-council/wolverhampton","JONTROMANS","295.00","Technical Support","7372","Training Expenses","11/10/2016"
"Wolverhampton City Council","http://opendatacommunities.org/id/metropolitan-district-council/wolverhampton","WIX.COM","1.90","Technical Support","5968","Subscriptions","11/10/2016"
"Wolverhampton City Council","http://opendatacommunities.org/id/metropolitan-district-council/wolverhampton","123 REG R/T","11.99","Technical Support","5968","Subscriptions","11/10/2016"
"Wolverhampton City Council","http://opendatacommunities.org/id/metropolitan-district-council/wolverhampton","MAPLIN WOLVERHAMPT WV2","146.35","Learning Technologies","4812","Comms - Mobile Telephones","11/10/2016"
"Wolverhampton City Council","http://opendatacommunities.org/id/metropolitan-district-council/wolverhampton","BME TRAVEL","400.00","Technical Support","4121","Client Transport","11/10/2016"
"Wolverhampton City Council","http://opendatacommunities.org/id/metropolitan-district-council/wolverhampton","BCC REGISTER OFFIC","15.00","LAC Team","9399","Financial Assistance In Exceptional Circ","11/10/2016"
"Wolverhampton City Council","http://opendatacommunities.org/id/metropolitan-district-council/wolverhampton","PAST PRESENT AND FUTUR","416.67","LAC Transitions Team","5732","Client Allowances","11/10/2016"
"Wolverhampton City Council","http://opendatacommunities.org/id/metropolitan-district-council/wolverhampton","ROYAL CARPETS","416.67","LAC Transitions Team","5713","Client Allowances","11/10/2016"
"Wolverhampton City Council","http://opendatacommunities.org/id/metropolitan-district-council/wolverhampton","ASDA HOME SHOPPING","-0.13","Ernest Bold Court","5411","Provisions (Not for resale)","11/10/2016"
"Wolverhampton City Council","http://opendatacommunities.org/id/metropolitan-district-council/wolverhampton","ASDA HOME SHOPPING","90.79","Ernest Bold Court","5411","Provisions (Not for resale)","11/10/2016"
"Wolverhampton City Council","http://opendatacommunities.org/id/metropolitan-district-council/wolverhampton","NATWEST BANK","200.00","CIN/CP S17 SW Unit - Area 5","6011","Financial Assistance In Exceptional Circ","11/10/2016"
"Wolverhampton City Council","http://opendatacommunities.org/id/metropolitan-district-council/wolverhampton","NATWEST BANK","200.00","CIN/CP S17 SW Unit - Area 5","6011","Financial Assistance In Exceptional Circ","11/10/2016"
"Wolverhampton City Council","http://opendatacommunities.org/id/metropolitan-district-council/wolverhampton","Trainline.com Ltd","201.65","Service Director City Economy","4112","Public Transport","11/10/2016"
"Wolverhampton City Council","http://opendatacommunities.org/id/metropolitan-district-council/wolverhampton","PRINTCARRIER.COM","55.00","Civic Halls Non Direct Management A/C","2741","Marketing \ Non-staff advertising","11/10/2016"
"Wolverhampton City Council","http://opendatacommunities.org/id/metropolitan-district-council/wolverhampton","LOYD 37 CHURCH STREET","100.00","Duke Street Bungalows","6011","Public Transport","11/10/2016"
"Wolverhampton City Council","http://opendatacommunities.org/id/metropolitan-district-council/wolverhampton","LOYD 37 CHURCH STREET","100.00","Duke Street Bungalows","6011","Public Transport","11/10/2016"
"Wolverhampton City Council","http://opendatacommunities.org/id/metropolitan-district-council/wolverhampton","THE POST OFFICE","10.82","Central Costs","9402","Comms - Postage","11/10/2016"
"Wolverhampton City Council","http://opendatacommunities.org/id/metropolitan-district-council/wolverhampton","CENTRO HOUSE","1588.65","Legal Services","4112","Public Transport","11/10/2016"
"Wolverhampton City Council","http://opendatacommunities.org/id/metropolitan-district-council/wolverhampton","ARGOS RETAIL GROUP","179.98","Ernest Bold Court","5310","Equipment - Purchase","11/10/2016"
"Wolverhampton City Council","http://opendatacommunities.org/id/metropolitan-district-council/wolverhampton","G & M HALE (SUNDRIES)","10.20","Creative Studies Delivery Area","5992","Materials","11/10/2016"
"Wolverhampton City Council","http://opendatacommunities.org/id/metropolitan-district-council/wolverhampton","G & M HALE LTD","35.10","Creative Studies Delivery Area","5992","Materials","11/10/2016"
"Wolverhampton City Council","http://opendatacommunities.org/id/metropolitan-district-council/wolverhampton","Trainline.com Ltd","154.00","School Improvement","4112","Public Transport","11/10/2016"
"Wolverhampton City Council","http://opendatacommunities.org/id/metropolitan-district-council/wolverhampton","WEST COAST TRAINS","6.25","Cemeteries","4112","Public Transport","11/10/2016"
"Wolverhampton City Council","http://opendatacommunities.org/id/metropolitan-district-council/wolverhampton","Trainline.com Ltd","105.77","Register Office","4112","Public Transport","11/10/2016"
"Wolverhampton City Council","http://opendatacommunities.org/id/metropolitan-district-council/wolverhampton","Trainline.com Ltd","318.60","Mayoral Expenses","4112","Public Transport","11/10/2016"
"Wolverhampton City Council","http://opendatacommunities.org/id/metropolitan-district-council/wolverhampton","DSA THEORY TEST","23.00","European Liaison","9399","Client Transport","10/10/2016"
"Wolverhampton City Council","http://opendatacommunities.org/id/metropolitan-district-council/wolverhampton","NETWORK WEST MIDLANDS","31.00","European Liaison","9399","Financial Assistance In Exceptional Circ","10/10/2016"
"Wolverhampton City Council","http://opendatacommunities.org/id/metropolitan-district-council/wolverhampton","AMAZON UK RETAIL AMAZO","49.92","Strategic ICTS (ICT Serv Budget)","5999","Equipment - Purchase","10/10/2016"
"Wolverhampton City Council","http://opendatacommunities.org/id/metropolitan-district-council/wolverhampton","Amazon UK Marketplace","111.94","Strategic ICTS (ICT Serv Budget)","5942","Comms - Mobile Telephones","10/10/2016"
"Wolverhampton City Council","http://opendatacommunities.org/id/metropolitan-district-council/wolverhampton","EAST MIDLANDS TRAI","15.80","Managing Director","4112","Public Transport","10/10/2016"
"Wolverhampton City Council","http://opendatacommunities.org/id/metropolitan-district-council/wolverhampton","Trainline.com Ltd","97.40","Delivery & OCE Development","4112","Public Transport","10/10/2016"
"Wolverhampton City Council","http://opendatacommunities.org/id/metropolitan-district-council/wolverhampton","AMAZON UK PRIME AMZN.C","6.66","Central Baths","5968","Subscriptions","10/10/2016"
"Wolverhampton City Council","http://opendatacommunities.org/id/metropolitan-district-council/wolverhampton","HM PASSPORT OFFICE","98.00","LAC Team","9399","Services - Fees and Charges","10/10/2016"
"Wolverhampton City Council","http://opendatacommunities.org/id/metropolitan-district-council/wolverhampton","ASDA HOME SHOPPING","-1.40","Upper Pendeford Farm Childrens Home","5411","Provisions (Not for resale)","10/10/2016"
"Wolverhampton City Council","http://opendatacommunities.org/id/metropolitan-district-council/wolverhampton","ASDA HOME SHOPPING","148.66","Upper Pendeford Farm Childrens Home","5411","Provisions (Not for resale)","10/10/2016"
"Wolverhampton City Council","http://opendatacommunities.org/id/metropolitan-district-council/wolverhampton","O K DINERS","17.95","Headstart","5812","Educ Trips, Holidays, Outings, Activity","10/10/2016"
"Wolverhampton City Council","http://opendatacommunities.org/id/metropolitan-district-council/wolverhampton","HOMESENSE","39.92","Director of Education","5331","Equipment - Purchase","10/10/2016"
"Wolverhampton City Council","http://opendatacommunities.org/id/metropolitan-district-council/wolverhampton","123 REG R/T","6.99","Public Health - Healthier Places Team","5968","Subscriptions","10/10/2016"
"Wolverhampton City Council","http://opendatacommunities.org/id/metropolitan-district-council/wolverhampton","B&M RETAIL","35.98","Wolverhampton Indoor and Open Market","5310","Equipment - Purchase","10/10/2016"
"Wolverhampton City Council","http://opendatacommunities.org/id/metropolitan-district-council/wolverhampton","Amazon UK Marketplace","83.32","Children & Family Contact Services","5942","Equipment - Purchase","10/10/2016"
"Wolverhampton City Council","http://opendatacommunities.org/id/metropolitan-district-council/wolverhampton","BRITANNIA","150.83","CIN/CP S17 SW Unit - Area 4","7011","Services - Supplies & Services to users","10/10/2016"
"Wolverhampton City Council","http://opendatacommunities.org/id/metropolitan-district-council/wolverhampton","CT WOLVERHAMPTON","60.42","LAC Transitions Team","8398","Client Allowances","10/10/2016"
"Wolverhampton City Council","http://opendatacommunities.org/id/metropolitan-district-council/wolverhampton","VERIFONE TAXI/PRIVATE","6.60","CIN/CP S17 SW Unit - Area 6","4121","Client Transport","10/10/2016"
"Wolverhampton City Council","http://opendatacommunities.org/id/metropolitan-district-council/wolverhampton","VERIFONE TAXI/PRIVATE","6.60","CIN/CP S17 SW Unit - Area 6","4121","Client Transport","10/10/2016"
"Wolverhampton City Council","http://opendatacommunities.org/id/metropolitan-district-council/wolverhampton","Amazon UK Marketplace","24.98","Carers Support","5942","Equipment - Purchase","10/10/2016"
"Wolverhampton City Council","http://opendatacommunities.org/id/metropolitan-district-council/wolverhampton","Wix.com","93.13","Technical Support","5817","Computing - Purchase of Software","10/10/2016"
"Wolverhampton City Council","http://opendatacommunities.org/id/metropolitan-district-council/wolverhampton","ASDA SUPERSTORE","53.17","EIP Locality 3","5411","Financial Assistance In Exceptional Circ","10/10/2016"
"Wolverhampton City Council","http://opendatacommunities.org/id/metropolitan-district-council/wolverhampton","HUGHES","173.26","EIP Locality 3","5732","Financial Assistance In Exceptional Circ","10/10/2016"
"Wolverhampton City Council","http://opendatacommunities.org/id/metropolitan-district-council/wolverhampton","ASDA HOME SHOPPING","-0.66","Ernest Bold Court","5411","Provisions (Not for resale)","10/10/2016"
"Wolverhampton City Council","http://opendatacommunities.org/id/metropolitan-district-council/wolverhampton","ASDA HOME SHOPPING","98.74","Ernest Bold Court","5411","Provisions (Not for resale)","10/10/2016"
"Wolverhampton City Council","http://opendatacommunities.org/id/metropolitan-district-council/wolverhampton","TVLICENSING.CO.UK","145.50","Duke Street Bungalows","7392","Services - Consultants","10/10/2016"
"Wolverhampton City Council","http://opendatacommunities.org/id/metropolitan-district-council/wolverhampton","TOOLSTATION LTD","8.92","Education Catering - General Overheads","5251","Equipment - Purchase","10/10/2016"
"Wolverhampton City Council","http://opendatacommunities.org/id/metropolitan-district-council/wolverhampton","TRAINING COMPANY","199.00","Central Training","8299","Training Expenses","10/10/2016"
"Wolverhampton City Council","http://opendatacommunities.org/id/metropolitan-district-council/wolverhampton","AMAZON UK RETAIL AMAZO","21.51","Children & Family Contact Services","5999","Equipment - Purchase","10/10/2016"
"Wolverhampton City Council","http://opendatacommunities.org/id/metropolitan-district-council/wolverhampton","LIDL UK","31.33","Children & Family Contact Services","5411","Provisions (Not for resale)","10/10/2016"
"Wolverhampton City Council","http://opendatacommunities.org/id/metropolitan-district-council/wolverhampton","ALDI","29.47","Children & Family Contact Services","5411","Provisions (Not for resale)","10/10/2016"
"Wolverhampton City Council","http://opendatacommunities.org/id/metropolitan-district-council/wolverhampton","Trainline.com Ltd","158.60","School Improvement","4112","Public Transport","07/10/2016"
"Wolverhampton City Council","http://opendatacommunities.org/id/metropolitan-district-council/wolverhampton","LEE BOLTON MONIER WILL","253.00","School Improvement","8111","Services - Professional Fees","07/10/2016"
"Wolverhampton City Council","http://opendatacommunities.org/id/metropolitan-district-council/wolverhampton","Virgintrains.co.uk","-180.40","Fostering Team & Allowances","4112","Public Transport","07/10/2016"
"Wolverhampton City Council","http://opendatacommunities.org/id/metropolitan-district-council/wolverhampton","MATALAN","50.04","LAC Transitions Team","5691","Client Allowances","07/10/2016"
"Wolverhampton City Council","http://opendatacommunities.org/id/metropolitan-district-council/wolverhampton","ARGOS LTD","109.97","CIN/CP S17 SW Unit - Area 3A","5310","Provisions (Not for resale)","07/10/2016"
"Wolverhampton City Council","http://opendatacommunities.org/id/metropolitan-district-council/wolverhampton","DVLA DRIVER ONLINE","20.00","European Liaison","9399","Financial Assistance In Exceptional Circ","07/10/2016"
"Wolverhampton City Council","http://opendatacommunities.org/id/metropolitan-district-council/wolverhampton","Trainline.com Ltd","142.29","Public Health - Healthier Places Team","4112","Public Transport","07/10/2016"
"Wolverhampton City Council","http://opendatacommunities.org/id/metropolitan-district-council/wolverhampton","Trainline.com Ltd","89.05","Public Health - Healthier Places Team","4112","Public Transport","07/10/2016"
"Wolverhampton City Council","http://opendatacommunities.org/id/metropolitan-district-council/wolverhampton","Trainline.com Ltd","76.70","SWP - Infrastructure","4112","Public Transport","07/10/2016"
"Wolverhampton City Council","http://opendatacommunities.org/id/metropolitan-district-council/wolverhampton","Trainline.com Ltd","48.76","SWP - Infrastructure","4112","Public Transport","07/10/2016"
"Wolverhampton City Council","http://opendatacommunities.org/id/metropolitan-district-council/wolverhampton","RICOH ARENA CAR PARK U","6.00","Managing Director","7523","Car Allowances","07/10/2016"
"Wolverhampton City Council","http://opendatacommunities.org/id/metropolitan-district-council/wolverhampton","C L JONES LIMITED","238.75","Towers Outdoor Education Centre","5211","Materials","07/10/2016"
"Wolverhampton City Council","http://opendatacommunities.org/id/metropolitan-district-council/wolverhampton","HN NUTTALL LTD","656.63","Towers Outdoor Education Centre","5085","Equipment - Purchase","07/10/2016"
"Wolverhampton City Council","http://opendatacommunities.org/id/metropolitan-district-council/wolverhampton","PAYPAL  PRINTEDMUGS","205.49","Technical Support","2741","Publications","07/10/2016"
"Wolverhampton City Council","http://opendatacommunities.org/id/metropolitan-district-council/wolverhampton","WOLVERHAMPTON ART","21.71","Art Galleries - Schools Art SLA Service","8299","Catering","07/10/2016"
"Wolverhampton City Council","http://opendatacommunities.org/id/metropolitan-district-council/wolverhampton","JONES SKIP HIRE (WOLVE","165.76","Vulnerable Young Persons Team","7399","Equipment - Hire","07/10/2016"
"Wolverhampton City Council","http://opendatacommunities.org/id/metropolitan-district-council/wolverhampton","POST OFFICE COUNTER","128.00","Vulnerable Young Persons Team","9402","Comms - Postage","07/10/2016"
"Wolverhampton City Council","http://opendatacommunities.org/id/metropolitan-district-council/wolverhampton","WWW.PMGLTD.CO.UK","385.00","Service Director City Environment","7399","Conference Expenses","07/10/2016"
"Wolverhampton City Council","http://opendatacommunities.org/id/metropolitan-district-council/wolverhampton","WWW.WARWICKSHIRE.GOV.U","110.00","Central Training","9399","Training Expenses","07/10/2016"
"Wolverhampton City Council","http://opendatacommunities.org/id/metropolitan-district-council/wolverhampton","Trainline.com Ltd","191.10","Future People","4112","Public Transport","07/10/2016"
"Wolverhampton City Council","http://opendatacommunities.org/id/metropolitan-district-council/wolverhampton","Amazon UK Marketplace","5.70","Children & Family Contact Services","5942","Cleaning Supplies and Materials","07/10/2016"
"Wolverhampton City Council","http://opendatacommunities.org/id/metropolitan-district-council/wolverhampton","JONES SKIP HIRE (WOLVE","5.10","Children & Family Contact Services","7399","Equipment - Purchase","07/10/2016"
"Wolverhampton City Council","http://opendatacommunities.org/id/metropolitan-district-council/wolverhampton","JONES SKIP HIRE (WOLVE","170.00","Children & Family Contact Services","7399","Equipment - Purchase","07/10/2016"
"Wolverhampton City Council","http://opendatacommunities.org/id/metropolitan-district-council/wolverhampton","HOTELS COM133029411479","77.50","Headstart","4722","Accommodation Costs","07/10/2016"
"Wolverhampton City Council","http://opendatacommunities.org/id/metropolitan-district-council/wolverhampton","CREDIT RESOURCE SOLUTI","38.57","LAC Transitions Team","5968","Independant Living Allowance","07/10/2016"
"Wolverhampton City Council","http://opendatacommunities.org/id/metropolitan-district-council/wolverhampton","HUGHES","327.87","LAC Transitions Team","5732","Client Allowances","07/10/2016"
"Wolverhampton City Council","http://opendatacommunities.org/id/metropolitan-district-council/wolverhampton","YARRINGTON (MOTO)","1680.00","Business Engagement","7311","Marketing \ Non-staff advertising","07/10/2016"
"Wolverhampton City Council","http://opendatacommunities.org/id/metropolitan-district-council/wolverhampton","THE SPRINGHILL","105.00","Parent / Partnership Service","5812","Educ Trips, Holidays, Outings, Activity","07/10/2016"
"Wolverhampton City Council","http://opendatacommunities.org/id/metropolitan-district-council/wolverhampton","JOHNSTONES DEC CENTRE","27.78","Hickman Avenue Depot","5231","R&M - Departmental planned (external)","07/10/2016"
"Wolverhampton City Council","http://opendatacommunities.org/id/metropolitan-district-council/wolverhampton","TESCO STORES 5397","7.68","EIP Locality 1","5411","Comms - Postage","07/10/2016"
"Wolverhampton City Council","http://opendatacommunities.org/id/metropolitan-district-council/wolverhampton","GO CARZ","16.78","Referral Team CIN - S17","4121","Client Transport","07/10/2016"
"Wolverhampton City Council","http://opendatacommunities.org/id/metropolitan-district-council/wolverhampton","GO CARZ","16.78","Referral Team CIN - S17","4121","Client Transport","07/10/2016"
"Wolverhampton City Council","http://opendatacommunities.org/id/metropolitan-district-council/wolverhampton","BETTWS MOTORS LIMITED","51.08","Towers Outdoor Education Centre","7538","Vehicle Maintenance - Repairs","07/10/2016"
"Wolverhampton City Council","http://opendatacommunities.org/id/metropolitan-district-council/wolverhampton","HARLECH FOODSERVICE LT","351.95","Towers Outdoor Education Centre","5422","Catering","07/10/2016"
"Wolverhampton City Council","http://opendatacommunities.org/id/metropolitan-district-council/wolverhampton","WYNNSTAY ARGICULTURAL","153.28","Towers Outdoor Education Centre","5311","Equipment - Purchase","07/10/2016"
"Wolverhampton City Council","http://opendatacommunities.org/id/metropolitan-district-council/wolverhampton","LOVE2SHOP.CO.UK","304.25","European Liaison","8641","Financial Assistance In Exceptional Circ","06/10/2016"
"Wolverhampton City Council","http://opendatacommunities.org/id/metropolitan-district-council/wolverhampton","PREMIER INN","333.00","Adoption and Residence Team & Allowances","3811","Client Allowances","06/10/2016"
"Wolverhampton City Council","http://opendatacommunities.org/id/metropolitan-district-council/wolverhampton","B & Q 1243","71.02","Bert Williams Leisure Centre","5211","Equipment - Purchase","06/10/2016"
"Wolverhampton City Council","http://opendatacommunities.org/id/metropolitan-district-council/wolverhampton","ASDA HOME SHOPPING","-1.55","Upper Pendeford Farm Childrens Home","5411","Provisions (Not for resale)","06/10/2016"
"Wolverhampton City Council","http://opendatacommunities.org/id/metropolitan-district-council/wolverhampton","ASDA HOME SHOPPING","124.26","Upper Pendeford Farm Childrens Home","5411","Provisions (Not for resale)","06/10/2016"
"Wolverhampton City Council","http://opendatacommunities.org/id/metropolitan-district-council/wolverhampton","B&M RETAIL","24.94","Headstart","5310","Equipment - Purchase","06/10/2016"
"Wolverhampton City Council","http://opendatacommunities.org/id/metropolitan-district-council/wolverhampton","WAITROSE 696","22.37","Headstart","5411","Provisions (Not for resale)","06/10/2016"
"Wolverhampton City Council","http://opendatacommunities.org/id/metropolitan-district-council/wolverhampton","METRO INN","-27.00","Adoption and Residence Team & Allowances","5812","Accommodation Costs","06/10/2016"
"Wolverhampton City Council","http://opendatacommunities.org/id/metropolitan-district-council/wolverhampton","METRO INNS WALSALL","-120.00","Adoption and Residence Team & Allowances","7011","Services - Supplies & Services to users","06/10/2016"
"Wolverhampton City Council","http://opendatacommunities.org/id/metropolitan-district-council/wolverhampton","BOOKWHEN","9.00","Craftplay","7372","Computing - Purchase of Software","06/10/2016"
"Wolverhampton City Council","http://opendatacommunities.org/id/metropolitan-district-council/wolverhampton","NATWEST BANK","100.00","Democratic Support","6011","Public Transport","06/10/2016"
"Wolverhampton City Council","http://opendatacommunities.org/id/metropolitan-district-council/wolverhampton","ASDA SUPERSTORE","200.00","CIN/CP S17 SW Unit - Area 5","5411","Provisions (Not for resale)","06/10/2016"
"Wolverhampton City Council","http://opendatacommunities.org/id/metropolitan-district-council/wolverhampton","BARCLAYS BANK PLC","200.00","CIN/CP S17 SW Unit - Area 5","6011","Financial Assistance In Exceptional Circ","06/10/2016"
"Wolverhampton City Council","http://opendatacommunities.org/id/metropolitan-district-council/wolverhampton","BARCLAYS BANK PLC","200.00","CIN/CP S17 SW Unit - Area 5","6011","Financial Assistance In Exceptional Circ","06/10/2016"
"Wolverhampton City Council","http://opendatacommunities.org/id/metropolitan-district-council/wolverhampton","WWW.ALDERCROSS.COM","357.00","Service Director City Environment","7392","Services - Consultants","06/10/2016"
"Wolverhampton City Council","http://opendatacommunities.org/id/metropolitan-district-council/wolverhampton","Trainline.com Ltd","74.56","City Marketing (Place)","4112","Public Transport","06/10/2016"
"Wolverhampton City Council","http://opendatacommunities.org/id/metropolitan-district-council/wolverhampton","TVLICENSING.CO.UK","121.25","LAC Transitions Team","7392","Client Allowances","06/10/2016"
"Wolverhampton City Council","http://opendatacommunities.org/id/metropolitan-district-council/wolverhampton","TVLICENSING.CO.UK","121.25","LAC Transitions Team","7392","Client Allowances","06/10/2016"
"Wolverhampton City Council","http://opendatacommunities.org/id/metropolitan-district-council/wolverhampton","WOLVERHAMPTON CITY COU","21.00","Art Gallery","9399","Services - Fees and Charges","06/10/2016"
"Wolverhampton City Council","http://opendatacommunities.org/id/metropolitan-district-council/wolverhampton","B & Q 1243","5.83","Education Catering - General Overheads","5211","Materials","06/10/2016"
"Wolverhampton City Council","http://opendatacommunities.org/id/metropolitan-district-council/wolverhampton","Trainline.com Ltd","8.30","Travelwise","4112","Public Transport","06/10/2016"
"Wolverhampton City Council","http://opendatacommunities.org/id/metropolitan-district-council/wolverhampton","WILKO RETAIL LIMIT","8.33","Mayoral Expenses","5722","Equipment - Purchase","06/10/2016"
"Wolverhampton City Council","http://opendatacommunities.org/id/metropolitan-district-council/wolverhampton","WM MORRISON 024","14.23","Fostering Team & Allowances","5411","Provisions (Not for resale)","06/10/2016"
"Wolverhampton City Council","http://opendatacommunities.org/id/metropolitan-district-council/wolverhampton","PREMIER INN","262.97","Fostering Team & Allowances","3811","Services - Supplies & Services to users","06/10/2016"
"Wolverhampton City Council","http://opendatacommunities.org/id/metropolitan-district-council/wolverhampton","Trainline.com Ltd","190.40","Fostering Team & Allowances","4112","Public Transport","06/10/2016"
"Wolverhampton City Council","http://opendatacommunities.org/id/metropolitan-district-council/wolverhampton","SAINSBURYS (2340)","46.08","Physical & Sensory Disabilities Mgmt","5411","Comms - Postage","06/10/2016"
"Wolverhampton City Council","http://opendatacommunities.org/id/metropolitan-district-council/wolverhampton","SAINSBURYS","260.00","Childrens with Disabilities Team","6011","Financial Assistance In Exceptional Circ","06/10/2016"
"Wolverhampton City Council","http://opendatacommunities.org/id/metropolitan-district-council/wolverhampton","Trainline.com Ltd","177.79","Adoption and Residence Team & Allowances","4112","Public Transport","06/10/2016"
"Wolverhampton City Council","http://opendatacommunities.org/id/metropolitan-district-council/wolverhampton","Trainline.com Ltd","43.96","Adoption and Residence Team & Allowances","4112","Public Transport","06/10/2016"
"Wolverhampton City Council","http://opendatacommunities.org/id/metropolitan-district-council/wolverhampton","TIMPSON LTD","8.33","Strategic ICTS (ICT Serv Budget)","7251","Fixtures and Fittings - R&M","06/10/2016"
"Wolverhampton City Council","http://opendatacommunities.org/id/metropolitan-district-council/wolverhampton","SANDWELL M.B.C.","31.00","LAC Transitions Team","9399","Services - Fees and Charges","05/10/2016"
"Wolverhampton City Council","http://opendatacommunities.org/id/metropolitan-district-council/wolverhampton","SCREWFIX DIRECT","-124.99","Service Wide","5211","Materials","05/10/2016"
"Wolverhampton City Council","http://opendatacommunities.org/id/metropolitan-district-council/wolverhampton","WILKO RETAIL LIMIT","20.96","The Maltings","5722","Equipment - Purchase","05/10/2016"
"Wolverhampton City Council","http://opendatacommunities.org/id/metropolitan-district-council/wolverhampton","ARGOS RETAIL GROUP","162.68","CIN/CP S17 SW Unit - Area 2","5310","Furniture","05/10/2016"
"Wolverhampton City Council","http://opendatacommunities.org/id/metropolitan-district-council/wolverhampton","Trainline.com Ltd","121.00","Planning","4112","Public Transport","05/10/2016"
"Wolverhampton City Council","http://opendatacommunities.org/id/metropolitan-district-council/wolverhampton","TESCO STORES 5194","210.61","Towers Outdoor Education Centre","5411","Provisions (Not for resale)","05/10/2016"
"Wolverhampton City Council","http://opendatacommunities.org/id/metropolitan-district-council/wolverhampton","Amazon EU","24.64","Technical Support","5969","Equipment - Purchase","05/10/2016"
"Wolverhampton City Council","http://opendatacommunities.org/id/metropolitan-district-council/wolverhampton","1&1 INTERNET LIMITED","20.98","Learning Technologies","4816","Computing - Purchase of Software","05/10/2016"
"Wolverhampton City Council","http://opendatacommunities.org/id/metropolitan-district-council/wolverhampton","WOLVES CC","88.00","CIN/CP S17 SW Unit - Area 5","9399","Services - Fees and Charges","05/10/2016"
"Wolverhampton City Council","http://opendatacommunities.org/id/metropolitan-district-council/wolverhampton","Trainline.com Ltd","74.56","City Marketing (Place)","4112","Public Transport","05/10/2016"
"Wolverhampton City Council","http://opendatacommunities.org/id/metropolitan-district-council/wolverhampton","PREMIER INN","70.41","Safeguarding Admin Resource","3811","Services - Supplies & Services to users","05/10/2016"
"Wolverhampton City Council","http://opendatacommunities.org/id/metropolitan-district-council/wolverhampton","VALUATION OFFICE AGENC","380.00","Civic Halls Non Direct Management A/C","9399","Fines & Penalties","05/10/2016"
"Wolverhampton City Council","http://opendatacommunities.org/id/metropolitan-district-council/wolverhampton","EE LIMITED R501","30.00","School Crossing Patrol","4812","Comms - Mobile Telephones","05/10/2016"
"Wolverhampton City Council","http://opendatacommunities.org/id/metropolitan-district-council/wolverhampton","Trainline.com Ltd","84.15","Legal Services","4112","Public Transport","05/10/2016"
"Wolverhampton City Council","http://opendatacommunities.org/id/metropolitan-district-council/wolverhampton","WWW.SEVERNTRENTSEARCHE","290.00","Disposal Costs","4900","Services - Professional Fees","05/10/2016"
"Wolverhampton City Council","http://opendatacommunities.org/id/metropolitan-district-council/wolverhampton","G & M HALE (SUNDRIES)","17.45","Creative Studies Delivery Area","5992","Materials for resale","05/10/2016"
"Wolverhampton City Council","http://opendatacommunities.org/id/metropolitan-district-council/wolverhampton","G & M HALE LTD","82.20","Creative Studies Delivery Area","5992","Materials for resale","05/10/2016"
"Wolverhampton City Council","http://opendatacommunities.org/id/metropolitan-district-council/wolverhampton","G & M HALE LTD","106.90","Discretionary Fund","5992","Materials","05/10/2016"
"Wolverhampton City Council","http://opendatacommunities.org/id/metropolitan-district-council/wolverhampton","SAINSBURYS (2340)","15.50","EIP Locality 4","5411","Provisions (Not for resale)","05/10/2016"
"Wolverhampton City Council","http://opendatacommunities.org/id/metropolitan-district-council/wolverhampton","SAINSBURYS (2340)","57.31","EIP Locality 4","5411","Provisions (Not for resale)","05/10/2016"
"Wolverhampton City Council","http://opendatacommunities.org/id/metropolitan-district-council/wolverhampton","WOLVES CC","120.00","CIN/CP S17 SW Unit - Area 5","9399","Services - Fees and Charges","05/10/2016"
"Wolverhampton City Council","http://opendatacommunities.org/id/metropolitan-district-council/wolverhampton","E.ON ENERGY SOLUTIONS","200.00","CIN/CP S17 SW Unit - Area 5","4900","Electricity","05/10/2016"
"Wolverhampton City Council","http://opendatacommunities.org/id/metropolitan-district-council/wolverhampton","Trainline.com Ltd","39.68","CIN/CP Social Work Unit - Area 8","4112","Public Transport","05/10/2016"
"Wolverhampton City Council","http://opendatacommunities.org/id/metropolitan-district-council/wolverhampton","Amazon UK Marketplace","18.40","LAC Transitions Team","5942","Client Allowances","05/10/2016"
"Wolverhampton City Council","http://opendatacommunities.org/id/metropolitan-district-council/wolverhampton","REGISTRARS OFFICE","40.00","Adoption and Residence Team & Allowances","8299","Services - Fees and Charges","05/10/2016"
"Wolverhampton City Council","http://opendatacommunities.org/id/metropolitan-district-council/wolverhampton","Trainline.com Ltd","51.20","Archives","4112","Public Transport","04/10/2016"
"Wolverhampton City Council","http://opendatacommunities.org/id/metropolitan-district-council/wolverhampton","NAMESCO","27.97","Director of Governance","4816","Computing - Purchase of Software","04/10/2016"
"Wolverhampton City Council","http://opendatacommunities.org/id/metropolitan-district-council/wolverhampton","Trainline.com Ltd","97.31","Safeguarding Admin Resource","4112","Public Transport","04/10/2016"
"Wolverhampton City Council","http://opendatacommunities.org/id/metropolitan-district-council/wolverhampton","WEST COAST TRAINS","10.83","Education And Access","4112","Public Transport","04/10/2016"
"Wolverhampton City Council","http://opendatacommunities.org/id/metropolitan-district-council/wolverhampton","YOUNGS SHOE REPAIRS LI","16.00","Wednesfield Street Market","7251","Fixtures and Fittings - R&M","04/10/2016"
"Wolverhampton City Council","http://opendatacommunities.org/id/metropolitan-district-council/wolverhampton","THE POST OFFICE","15.36","Wolverhampton Indoor and Open Market","9402","Comms - Postage","04/10/2016"
"Wolverhampton City Council","http://opendatacommunities.org/id/metropolitan-district-council/wolverhampton","B & Q 1243","11.01","Caretakers Community Centre","5211","R&M - Departmental planned (external)","04/10/2016"
"Wolverhampton City Council","http://opendatacommunities.org/id/metropolitan-district-council/wolverhampton","WWW.DERBY.GOV.UK","11.20","CIN/CP S17 SW Unit - Area 2","9399","Services - Fees and Charges","04/10/2016"
"Wolverhampton City Council","http://opendatacommunities.org/id/metropolitan-district-council/wolverhampton","REGISTRARS OFFICE","10.00","Private Sector Housing","8299","Services - Fees and Charges","04/10/2016"
"Wolverhampton City Council","http://opendatacommunities.org/id/metropolitan-district-council/wolverhampton","Trainline.com Ltd","93.33","Collections & Conservation","4112","Public Transport","04/10/2016"
"Wolverhampton City Council","http://opendatacommunities.org/id/metropolitan-district-council/wolverhampton","Trainline.com Ltd","15.77","SEN Special Education Admin","4112","Public Transport","04/10/2016"
"Wolverhampton City Council","http://opendatacommunities.org/id/metropolitan-district-council/wolverhampton","Amazon UK Marketplace","3.78","Global Budgets","5942","Books","04/10/2016"
"Wolverhampton City Council","http://opendatacommunities.org/id/metropolitan-district-council/wolverhampton","Amazon UK Marketplace","35.00","Global Budgets","5942","Books","04/10/2016"
"Wolverhampton City Council","http://opendatacommunities.org/id/metropolitan-district-council/wolverhampton","Amazon UK Marketplace","6.68","Global Budgets","5942","Books","04/10/2016"
"Wolverhampton City Council","http://opendatacommunities.org/id/metropolitan-district-council/wolverhampton","ARGOS LTD","39.97","EIP Locality 3","5310","Financial Assistance In Exceptional Circ","04/10/2016"
"Wolverhampton City Council","http://opendatacommunities.org/id/metropolitan-district-council/wolverhampton","ASDA HOME SHOPPING","-0.13","Ernest Bold Court","5411","Provisions (Not for resale)","04/10/2016"
"Wolverhampton City Council","http://opendatacommunities.org/id/metropolitan-district-council/wolverhampton","ASDA HOME SHOPPING","86.23","Ernest Bold Court","5411","Provisions (Not for resale)","04/10/2016"
"Wolverhampton City Council","http://opendatacommunities.org/id/metropolitan-district-council/wolverhampton","WILKO RETAIL LIMIT","4.17","College of Further Education","5722","Equipment - Purchase","04/10/2016"
"Wolverhampton City Council","http://opendatacommunities.org/id/metropolitan-district-council/wolverhampton","WWW.WILMINGTON.CO.","150.00","Legal Services","8699","Subscriptions","04/10/2016"
"Wolverhampton City Council","http://opendatacommunities.org/id/metropolitan-district-council/wolverhampton","THE COAL AUTHORITY","90.00","Disposal Costs","9399","Services - Professional Fees","04/10/2016"
"Wolverhampton City Council","http://opendatacommunities.org/id/metropolitan-district-council/wolverhampton","G & M HALE LTD","31.00","Creative Studies Delivery Area","5992","Materials","04/10/2016"
"Wolverhampton City Council","http://opendatacommunities.org/id/metropolitan-district-council/wolverhampton","Amazon UK Marketplace","25.23","School Improvement","5942","Books","04/10/2016"
"Wolverhampton City Council","http://opendatacommunities.org/id/metropolitan-district-council/wolverhampton","WAITROSE 696","14.98","EIP Locality 3","5411","Provisions (Not for resale)","04/10/2016"
"Wolverhampton City Council","http://opendatacommunities.org/id/metropolitan-district-council/wolverhampton","WAITROSE 696","5.99","EIP Locality 3","5411","Provisions (Not for resale)","04/10/2016"
"Wolverhampton City Council","http://opendatacommunities.org/id/metropolitan-district-council/wolverhampton","ASDA SUPERSTORE","11.50","CIN/CP S17 SW Unit - Area 5","5411","Provisions (Not for resale)","04/10/2016"
"Wolverhampton City Council","http://opendatacommunities.org/id/metropolitan-district-council/wolverhampton","ASDA SUPERSTORE","22.00","CIN/CP S17 SW Unit - Area 5","5411","Provisions (Not for resale)","04/10/2016"
"Wolverhampton City Council","http://opendatacommunities.org/id/metropolitan-district-council/wolverhampton","ASDA SUPERSTORE","26.75","CIN/CP S17 SW Unit - Area 5","5411","Provisions (Not for resale)","04/10/2016"
"Wolverhampton City Council","http://opendatacommunities.org/id/metropolitan-district-council/wolverhampton","UXPIN.com, +4869493995","94.95","City Direct","7372","Computing - Purchase of Software","04/10/2016"
"Wolverhampton City Council","http://opendatacommunities.org/id/metropolitan-district-council/wolverhampton","WM MORRISONS","55.70","Upper Pendeford Farm Childrens Home","5411","Provisions (Not for resale)","04/10/2016"
"Wolverhampton City Council","http://opendatacommunities.org/id/metropolitan-district-council/wolverhampton","HMCOURTS-SERVICE.G","20.00","Mental Health Assessment & Care Mgmt","9222","Services - Fees and Charges","04/10/2016"
"Wolverhampton City Council","http://opendatacommunities.org/id/metropolitan-district-council/wolverhampton","W M MORRISONS.COM","72.50","Discretionary Fund","5411","Materials","04/10/2016"
"Wolverhampton City Council","http://opendatacommunities.org/id/metropolitan-district-council/wolverhampton","EVENTBRITE","-180.00","Headstart","7399","Events","04/10/2016"
"Wolverhampton City Council","http://opendatacommunities.org/id/metropolitan-district-council/wolverhampton","EVENTBRITE","-180.00","Headstart","7399","Events","04/10/2016"
"Wolverhampton City Council","http://opendatacommunities.org/id/metropolitan-district-council/wolverhampton","PUBLIC SECTOR CONNECT","150.00","School Improvement","8299","Training Expenses","03/10/2016"
"Wolverhampton City Council","http://opendatacommunities.org/id/metropolitan-district-council/wolverhampton","Trainline.com Ltd","165.20","School Improvement","4112","Public Transport","03/10/2016"
"Wolverhampton City Council","http://opendatacommunities.org/id/metropolitan-district-council/wolverhampton","THE FLOWER STALL","166.67","Mayoral Expenses","5992","Hospitality","03/10/2016"
"Wolverhampton City Council","http://opendatacommunities.org/id/metropolitan-district-council/wolverhampton","ALDI","3.51","Revenues","5411","Provisions (Not for resale)","03/10/2016"
"Wolverhampton City Council","http://opendatacommunities.org/id/metropolitan-district-council/wolverhampton","TFM FARM & COUNTRY SUP","106.35","Northicote Farm","5399","Equipment - Purchase","03/10/2016"
"Wolverhampton City Council","http://opendatacommunities.org/id/metropolitan-district-council/wolverhampton","THE NEW BRIDGE GUEST H","500.00","CIN/CP S17 SW Unit - Area 8","7011","Services - Supplies & Services to users","03/10/2016"
"Wolverhampton City Council","http://opendatacommunities.org/id/metropolitan-district-council/wolverhampton","Trainline.com Ltd","223.40","Delivery & OCE Development","4112","Public Transport","03/10/2016"
"Wolverhampton City Council","http://opendatacommunities.org/id/metropolitan-district-council/wolverhampton","AMAZON UK RETAIL AMAZO","91.67","Headstart","5999","Equipment - Purchase","03/10/2016"
"Wolverhampton City Council","http://opendatacommunities.org/id/metropolitan-district-council/wolverhampton","Amazon UK Marketplace","697.48","Headstart","5942","Books","03/10/2016"
"Wolverhampton City Council","http://opendatacommunities.org/id/metropolitan-district-council/wolverhampton","TRELLO","3.96","City Direct","5045","Computing - Purchase of Hardware","03/10/2016"
"Wolverhampton City Council","http://opendatacommunities.org/id/metropolitan-district-council/wolverhampton","WIX.COM","93.13","Technical Support","5817","Computing - Purchase of Software","03/10/2016"
"Wolverhampton City Council","http://opendatacommunities.org/id/metropolitan-district-council/wolverhampton","Amazon UK Marketplace","12.26","Global Budgets","5942","Books","03/10/2016"
"Wolverhampton City Council","http://opendatacommunities.org/id/metropolitan-district-council/wolverhampton","Amazon UK Marketplace","2.81","Global Budgets","5942","Books","03/10/2016"
"Wolverhampton City Council","http://opendatacommunities.org/id/metropolitan-district-council/wolverhampton","THE POST OFFICE","55.75","LAC Team","9402","Financial Assistance In Exceptional Circ","03/10/2016"
"Wolverhampton City Council","http://opendatacommunities.org/id/metropolitan-district-council/wolverhampton","ASDA HOME SHOPPING","-4.00","Ernest Bold Court","5411","Provisions (Not for resale)","03/10/2016"
"Wolverhampton City Council","http://opendatacommunities.org/id/metropolitan-district-council/wolverhampton","W M MORRISON PLC","14.98","Ernest Bold Court","5411","Provisions (Not for resale)","03/10/2016"
"Wolverhampton City Council","http://opendatacommunities.org/id/metropolitan-district-council/wolverhampton","THE RANGE","2.91","Ernest Bold Court","5311","Equipment - Purchase","03/10/2016"
"Wolverhampton City Council","http://opendatacommunities.org/id/metropolitan-district-council/wolverhampton","ASDA HOME SHOPPING","-0.87","Ernest Bold Court","5411","Provisions (Not for resale)","03/10/2016"
"Wolverhampton City Council","http://opendatacommunities.org/id/metropolitan-district-council/wolverhampton","ASDA HOME SHOPPING","97.58","Ernest Bold Court","5411","Provisions (Not for resale)","03/10/2016"
"Wolverhampton City Council","http://opendatacommunities.org/id/metropolitan-district-council/wolverhampton","REGISTRARS OFFICE","10.00","European Liaison","8299","Financial Assistance In Exceptional Circ","03/10/2016"
"Wolverhampton City Council","http://opendatacommunities.org/id/metropolitan-district-council/wolverhampton","REGISTRARS OFFICE","10.00","European Liaison","8299","Financial Assistance In Exceptional Circ","03/10/2016"
"Wolverhampton City Council","http://opendatacommunities.org/id/metropolitan-district-council/wolverhampton","AMAZON UK RETAIL AMAZO","141.66","Strategic ICTS (ICT Serv Budget)","5999","Equipment - Purchase","03/10/2016"
"Wolverhampton City Council","http://opendatacommunities.org/id/metropolitan-district-council/wolverhampton","DAWSONS MUSIC INTE","189.00","LAC Transitions Team","5733","Client Allowances","03/10/2016"
"Wolverhampton City Council","http://opendatacommunities.org/id/metropolitan-district-council/wolverhampton","FACEBK J6KLG9AB82","159.46","Communications & Marketing - General","7311","Marketing \ Non-staff advertising","03/10/2016"
"Wolverhampton City Council","http://opendatacommunities.org/id/metropolitan-district-council/wolverhampton","FACEBK 4UZ7H96B92","19.32","Communications & Marketing - General","7311","Marketing \ Non-staff advertising","03/10/2016"
"Wolverhampton City Council","http://opendatacommunities.org/id/metropolitan-district-council/wolverhampton","FACEBK 3UZ7H96B92","479.61","Communications & Marketing - General","7311","Marketing \ Non-staff advertising","03/10/2016"
"Wolverhampton City Council","http://opendatacommunities.org/id/metropolitan-district-council/wolverhampton","CARESHOP","61.21","Community Enablement","5999","First Aid Requisites","03/10/2016"
"Wolverhampton City Council","http://opendatacommunities.org/id/metropolitan-district-council/wolverhampton","CARESHOP","70.68","Specialist Support Service - North","5999","Cleaning Supplies and Materials","03/10/2016"
"Wolverhampton City Council","http://opendatacommunities.org/id/metropolitan-district-council/wolverhampton","WWW.UKWRISTBANDS.COM","160.00","Civic Halls Non Direct Management A/C","5999","Equipment - Purchase","03/10/2016"
"Wolverhampton City Council","http://opendatacommunities.org/id/metropolitan-district-council/wolverhampton","UK AUTOMOTIVE PRODTS L","52.80","Catering Overhead Account","5533","Cleaning Supplies and Materials","03/10/2016"
"Wolverhampton City Council","http://opendatacommunities.org/id/metropolitan-district-council/wolverhampton","A F BLAKEMORE & SON LT","441.16","Catering Overhead Account","5411","Provisions (Not for resale)","03/10/2016"
"Wolverhampton City Council","http://opendatacommunities.org/id/metropolitan-district-council/wolverhampton","Amazon UK Marketplace","35.17","Hickman Park - Bonfire","5942","Books","03/10/2016"
"Wolverhampton City Council","http://opendatacommunities.org/id/metropolitan-district-council/wolverhampton","PRINTCARRIER.COM","45.83","The Little Civic","2741","Marketing \ Non-staff advertising","03/10/2016"
"Wolverhampton City Council","http://opendatacommunities.org/id/metropolitan-district-council/wolverhampton","FACEBK VSQ3J9SE92","459.64","Civic Halls Non Direct Management A/C","7311","Marketing \ Non-staff advertising","03/10/2016"
"Wolverhampton City Council","http://opendatacommunities.org/id/metropolitan-district-council/wolverhampton","FACEBK FPWQP9EC22","0.82","AES Staff Development","7311","Marketing \ Non-staff advertising","03/10/2016"
"Wolverhampton City Council","http://opendatacommunities.org/id/metropolitan-district-council/wolverhampton","FACEBK DPWQP9EC22","313.99","Service Wide","7311","Marketing \ Non-staff advertising","03/10/2016"
"Wolverhampton City Council","http://opendatacommunities.org/id/metropolitan-district-council/wolverhampton","BCC REGISTER OFFIC","15.00","Head of Service - CINCP","9399","Services - Professional Fees","03/10/2016"
"Wolverhampton City Council","http://opendatacommunities.org/id/metropolitan-district-council/wolverhampton","WWW.SHROPSHIRE-C.GOV.","11.00","Head of Service - CINCP","8220","Services - Professional Fees","03/10/2016"
